Organisation Name,Organisation Code,Directorate/Service,Service Category Label,Service Code,Supplier Name,Supplier Reference,Payment Date,Transaction Number,Net Payments,Purpose of Spend
North West Leicestershire District Council,31UH,Housing Repairs,HRA Housing Repairs & Maintenance,HRAHRM,Timber-Link Fencing Ltd,A033297,30/03/2022,1422395,2711.00,External Contractor Payments
North West Leicestershire District Council,31UH,Housing Repairs,HRA Housing Repairs & Maintenance,HRAHRM,Timber-Link Fencing Ltd,A033297,30/03/2022,1422396,1588.00,External Contractor Payments
North West Leicestershire District Council,31UH,Housing Repairs,HRA Housing Repairs & Maintenance,HRAHRM,Timber-Link Fencing Ltd,A033297,30/03/2022,1422397,398.00,External Contractor Payments
North West Leicestershire District Council,31UH,Housing Repairs,HRA Housing Repairs & Maintenance,HRAHRM,Timber-Link Fencing Ltd,A033297,30/03/2022,1422398,7425.00,External Contractor Payments
North West Leicestershire District Council,31UH,Housing Repairs,HRA Housing Repairs & Maintenance,HRAHRM,Timber-Link Fencing Ltd,A033297,30/03/2022,1422399,8000.00,External Contractor Payments
North West Leicestershire District Council,31UH,Housing Repairs,HRA Housing Repairs & Maintenance,HRAHRM,Timber-Link Fencing Ltd,A033297,30/03/2022,1422400,1422.00,External Contractor Payments
North West Leicestershire District Council,31UH,Housing Repairs,HRA Housing Repairs & Maintenance,HRAHRM,Timber-Link Fencing Ltd,A033297,23/03/2022,1422028,3355.00,External Contractor Payments
North West Leicestershire District Council,31UH,Housing Repairs,HRA Housing Repairs & Maintenance,HRAHRM,Timber-Link Fencing Ltd,A033297,23/03/2022,1422029,400.00,External Contractor Payments
North West Leicestershire District Council,31UH,Housing Repairs,HRA Housing Repairs & Maintenance,HRAHRM,Timber-Link Fencing Ltd,A033297,23/03/2022,1422030,568.00,External Contractor Payments
North West Leicestershire District Council,31UH,Housing Repairs,HRA Housing Repairs & Maintenance,HRAHRM,Timber-Link Fencing Ltd,A033297,23/03/2022,1422031,2830.18,External Contractor Payments
North West Leicestershire District Council,31UH,Housing Repairs,HRA Housing Repairs & Maintenance,HRAHRM,Timber-Link Fencing Ltd,A033297,23/03/2022,1422032,338.00,External Contractor Payments
North West Leicestershire District Council,31UH,Housing Repairs,HRA Housing Repairs & Maintenance,HRAHRM,Timber-Link Fencing Ltd,A033297,09/03/2022,1421276,1988.00,External Contractor Payments
North West Leicestershire District Council,31UH,Housing Repairs,HRA Housing Repairs & Maintenance,HRAHRM,Timber-Link Fencing Ltd,A033297,09/03/2022,1421277,574.00,External Contractor Payments
North West Leicestershire District Council,31UH,Housing Repairs,HRA Housing Repairs & Maintenance,HRAHRM,Timber-Link Fencing Ltd,A033297,09/03/2022,1421278,1718.00,External Contractor Payments
North West Leicestershire District Council,31UH,Housing Repairs,HRA Housing Repairs & Maintenance,HRAHRM,Timber-Link Fencing Ltd,A033297,09/03/2022,1421279,388.00,External Contractor Payments
North West Leicestershire District Council,31UH,Housing Repairs,HRA Housing Repairs & Maintenance,HRAHRM,Timber-Link Fencing Ltd,A033297,09/03/2022,1421280,376.00,External Contractor Payments
North West Leicestershire District Council,31UH,Housing Repairs,HRA Housing Repairs & Maintenance,HRAHRM,Timber-Link Fencing Ltd,A033297,09/03/2022,1421281,328.00,External Contractor Payments
North West Leicestershire District Council,31UH,Housing Repairs,HRA Housing Repairs & Maintenance,HRAHRM,Orbis Property Protection Ltd,A028149,23/03/2022,1421874,1538.04,Contract Cleaning
North West Leicestershire District Council,31UH,Housing Repairs,HRA Housing Repairs & Maintenance,HRAHRM,Orbis Property Protection Ltd,A028149,23/03/2022,1421875,795.00,Contract Cleaning
North West Leicestershire District Council,31UH,Housing Repairs,HRA Housing Repairs & Maintenance,HRAHRM,Laker BMS Ltd,A031787,23/03/2022,1421877,2410.84,Contract Payments (Dws) Ext
North West Leicestershire District Council,31UH,Housing Repairs,HRA Housing Repairs & Maintenance,HRAHRM,John Merison BMC Ltd,A001092,23/03/2022,1421878,2555.00,Contract Payments (Dws) Ext
North West Leicestershire District Council,31UH,Housing Repairs,HRA Housing Repairs & Maintenance,HRAHRM,Orbis Property Protection Ltd,A028149,23/03/2022,1421881,352.82,Contract Cleaning
North West Leicestershire District Council,31UH,Housing Repairs,HRA Housing Repairs & Maintenance,HRAHRM,Orbis Property Protection Ltd,A028149,23/03/2022,1421884,629.66,Contract Cleaning
North West Leicestershire District Council,31UH,Housing Repairs,HRA Housing Repairs & Maintenance,HRAHRM,Laker BMS Ltd,A031787,23/03/2022,1421885,2400.00,Contract Payments (Dws) Ext
North West Leicestershire District Council,31UH,Housing Repairs,HRA Housing Repairs & Maintenance,HRAHRM,Orbis Property Protection Ltd,A028149,23/03/2022,1421886,1144.71,Contract Cleaning
North West Leicestershire District Council,31UH,Housing Repairs,HRA Housing Repairs & Maintenance,HRAHRM,Premier Mobility UK Ltd,A045304,23/03/2022,1421888,421.23,Contract Payments (Dws) Ext
North West Leicestershire District Council,31UH,Housing Repairs,HRA Housing Repairs & Maintenance,HRAHRM,John Merison BMC Ltd,A001092,23/03/2022,1421889,2295.86,Contract Payments (Dws) Ext
North West Leicestershire District Council,31UH,Housing Repairs,HRA Housing Repairs & Maintenance,HRAHRM,Orbis Property Protection Ltd,A028149,23/03/2022,1421892,635.08,Contract Cleaning
North West Leicestershire District Council,31UH,Housing Repairs,HRA Housing Repairs & Maintenance,HRAHRM,Orbis Property Protection Ltd,A028149,23/03/2022,1421894,428.81,Contract Cleaning
North West Leicestershire District Council,31UH,Housing Repairs,HRA Housing Repairs & Maintenance,HRAHRM,Premier Mobility UK Ltd,A045304,23/03/2022,1421899,268.98,Contract Payments (Dws) Ext
North West Leicestershire District Council,31UH,Housing Repairs,HRA Housing Repairs & Maintenance,HRAHRM,Laker BMS Ltd,A031787,23/03/2022,1421900,3472.92,Contract Payments (Dws) Ext
North West Leicestershire District Council,31UH,Housing Repairs,HRA Housing Repairs & Maintenance,HRAHRM,Orbis Property Protection Ltd,A028149,23/03/2022,1421903,1024.77,Contract Cleaning
North West Leicestershire District Council,31UH,Housing Repairs,HRA Housing Repairs & Maintenance,HRAHRM,Orbis Property Protection Ltd,A028149,23/03/2022,1421904,838.10,Contract Cleaning
North West Leicestershire District Council,31UH,Housing Repairs,HRA Housing Repairs & Maintenance,HRAHRM,Orbis Property Protection Ltd,A028149,23/03/2022,1421907,286.06,Contract Cleaning
North West Leicestershire District Council,31UH,Housing Repairs,HRA Housing Repairs & Maintenance,HRAHRM,Laker BMS Ltd,A031787,23/03/2022,1421911,320.00,Contract Payments (Dws) Ext
North West Leicestershire District Council,31UH,Housing Repairs,HRA Housing Repairs & Maintenance,HRAHRM,Orbis Property Protection Ltd,A028149,23/03/2022,1421913,1058.46,Contract Cleaning
North West Leicestershire District Council,31UH,Housing Repairs,HRA Housing Repairs & Maintenance,HRAHRM,Orbis Property Protection Ltd,A028149,23/03/2022,1421914,564.52,Contract Cleaning
North West Leicestershire District Council,31UH,Housing Repairs,HRA Housing Repairs & Maintenance,HRAHRM,Orbis Property Protection Ltd,A028149,23/03/2022,1421918,1422.14,Contract Cleaning
North West Leicestershire District Council,31UH,Housing Repairs,HRA Housing Repairs & Maintenance,HRAHRM,Emperor Scaffolding Limited,A038405,09/03/2022,1421313,375.00,Hire Of Operational Equipment
North West Leicestershire District Council,31UH,Housing Repairs,HRA Housing Repairs & Maintenance,HRAHRM,Emperor Scaffolding Limited,A038405,09/03/2022,1421314,600.00,Hire Of Operational Equipment
North West Leicestershire District Council,31UH,Housing Repairs,HRA Housing Repairs & Maintenance,HRAHRM,Emperor Scaffolding Limited,A038405,09/03/2022,1421315,2640.00,Hire Of Operational Equipment
North West Leicestershire District Council,31UH,Housing Repairs,HRA Housing Repairs & Maintenance,HRAHRM,Dalrod UK Ltd,A046051,09/03/2022,1421316,995.95,Sewerage & Environmental
North West Leicestershire District Council,31UH,Housing Repairs,HRA Housing Repairs & Maintenance,HRAHRM,Orbis Property Protection Ltd,A028149,09/03/2022,1421318,352.82,Contract Cleaning
North West Leicestershire District Council,31UH,Housing Repairs,HRA Housing Repairs & Maintenance,HRAHRM,Orbis Property Protection Ltd,A028149,09/03/2022,1421319,474.42,Contract Cleaning
North West Leicestershire District Council,31UH,Housing Repairs,HRA Housing Repairs & Maintenance,HRAHRM,Orbis Property Protection Ltd,A028149,09/03/2022,1421321,1636.36,Contract Cleaning
North West Leicestershire District Council,31UH,Housing Repairs,HRA Housing Repairs & Maintenance,HRAHRM,Orbis Property Protection Ltd,A028149,09/03/2022,1421322,695.00,Contract Cleaning
North West Leicestershire District Council,31UH,Housing Repairs,HRA Housing Repairs & Maintenance,HRAHRM,Severn Trent Water Limited,A001468,09/03/2022,1421323,1049.65,Sewerage & Environmental
North West Leicestershire District Council,31UH,Housing Repairs,HRA Housing Repairs & Maintenance,HRAHRM,Emperor Scaffolding Limited,A038405,09/03/2022,1421324,375.00,Hire Of Operational Equipment
North West Leicestershire District Council,31UH,Housing Repairs,HRA Housing Repairs & Maintenance,HRAHRM,Emperor Scaffolding Limited,A038405,09/03/2022,1421325,660.00,Hire Of Operational Equipment
North West Leicestershire District Council,31UH,Housing Repairs,HRA Housing Repairs & Maintenance,HRAHRM,Emperor Scaffolding Limited,A038405,09/03/2022,1421326,440.00,Hire Of Operational Equipment
North West Leicestershire District Council,31UH,Housing Repairs,HRA Housing Repairs & Maintenance,HRAHRM,Emperor Scaffolding Limited,A038405,09/03/2022,1421327,1480.00,Hire Of Operational Equipment
North West Leicestershire District Council,31UH,Housing Repairs,HRA Housing Repairs & Maintenance,HRAHRM,Premier Mobility UK Ltd,A045304,09/03/2022,1421329,3182.25,Contract Payments (Dws) Ext
North West Leicestershire District Council,31UH,Housing Repairs,HRA Housing Repairs & Maintenance,HRAHRM,Emperor Scaffolding Limited,A038405,09/03/2022,1421336,1000.00,Hire Of Operational Equipment
North West Leicestershire District Council,31UH,Housing Repairs,HRA Housing Repairs & Maintenance,HRAHRM,Emperor Scaffolding Limited,A038405,09/03/2022,1421338,2000.00,Hire Of Operational Equipment
North West Leicestershire District Council,31UH,Housing Repairs,HRA Housing Repairs & Maintenance,HRAHRM,John Merison BMC Ltd,A001092,09/03/2022,1421339,3431.30,Contract Payments (Dws) Ext
North West Leicestershire District Council,31UH,Housing Repairs,HRA Housing Repairs & Maintenance,HRAHRM,Orbis Property Protection Ltd,A028149,09/03/2022,1421344,629.66,Contract Cleaning
North West Leicestershire District Council,31UH,Housing Repairs,HRA Housing Repairs & Maintenance,HRAHRM,Emperor Scaffolding Limited,A038405,09/03/2022,1421348,960.00,Hire Of Operational Equipment
North West Leicestershire District Council,31UH,Housing Repairs,HRA Housing Repairs & Maintenance,HRAHRM,Emperor Scaffolding Limited,A038405,09/03/2022,1421349,1840.00,Hire Of Operational Equipment
North West Leicestershire District Council,31UH,Housing Repairs,HRA Housing Repairs & Maintenance,HRAHRM,Orbis Property Protection Ltd,A028149,09/03/2022,1421353,1058.46,Contract Cleaning
North West Leicestershire District Council,31UH,Housing Repairs,HRA Housing Repairs & Maintenance,HRAHRM,Orbis Property Protection Ltd,A028149,09/03/2022,1421356,499.38,Contract Cleaning
North West Leicestershire District Council,31UH,Housing Repairs,HRA Housing Repairs & Maintenance,HRAHRM,Severn Trent Water Limited,A001468,09/03/2022,1421357,1202.64,Sewerage & Environmental
North West Leicestershire District Council,31UH,Street Management,Environment - Street Scene,ESS,Keltic,A030776,02/03/2022,1420021,487.15,Protective Clothing
North West Leicestershire District Council,31UH,Street Management,Environment Transport,ENOT,Terberg Matec UK Limited,A001647,23/03/2022,1421266,356.40,Repairs - Parts
North West Leicestershire District Council,31UH,Street Management,Environment Transport,ENOT,Terberg Matec UK Limited,A001647,23/03/2022,1421267,298.08,Repairs - Parts
North West Leicestershire District Council,31UH,Information Technology,ICT Services,ICT,Cuttlefish Multimedia Ltd,A032102,23/03/2022,1421472,1718.33,Website Maintenance
North West Leicestershire District Council,31UH,Street Management,Environment Parks,ENOP,George Browns Ltd,A044771,23/03/2022,1421563,3785.00,Operational Equipment
North West Leicestershire District Council,31UH,Street Management,Environment Transport,ENOT,Whitespace Work Software Ltd,A041243,23/03/2022,1421840,9571.40,Operational Equipment
North West Leicestershire District Council,31UH,Street Management,Environment Transport,ENOT,Terberg Matec UK Limited,A001647,23/03/2022,1421848,372.26,Repairs - Parts
North West Leicestershire District Council,31UH,Street Management,Environment Parks,ENOP,Manor farm Nurseries,A034561,23/03/2022,1421854,836.70,Horticultural Supplies
North West Leicestershire District Council,31UH,Corporate Director,Human Resources,HR,TMP Worldwide Ltd,A045319,23/03/2022,1421925,725.00,Employee Advertising
North West Leicestershire District Council,31UH,Street Management,Environment Parks,ENOP,Landscape Supply Company,A041669,23/03/2022,1421926,258.26,Operational Purchases
North West Leicestershire District Council,31UH,Street Management,Environment Waste Management,ENOWM,Vinyl  Decals Direct Ltd,A043487,23/03/2022,1421933,265.00,Operational Equipment
North West Leicestershire District Council,31UH,Property Services,Property Facilities Management,PROPFM,Midland Facilities Services Ltd,A046525,23/03/2022,1421739,774.14,General Repairs
North West Leicestershire District Council,31UH,Property Services,Property Facilities Management,PROPFM,Midland Facilities Services Ltd,A046525,23/03/2022,1421740,999.12,General Repairs
North West Leicestershire District Council,31UH,Property Services,Property Facilities Management,PROPFM,Midland Facilities Services Ltd,A046525,23/03/2022,1421741,285.00,General Repairs
North West Leicestershire District Council,31UH,Leisure & Culture,Sport & Physical Activity,SPA,Castle Donington College,A000302,23/03/2022,1421856,7896.00,Agency Staff
North West Leicestershire District Council,31UH,Information Technology,ICT Services,ICT,Phoenix Software Limited,A001298,23/03/2022,1421920,277.76,Corporate IT Licences
North West Leicestershire District Council,31UH,Street Management,Environment Parks,ENOP,ESPO,A000958,23/03/2022,1421923,565.00,General Repairs
North West Leicestershire District Council,31UH,Chief Exec,Chief Executive,CHEX,CPRE Commercial Property Real Estates Ltd,A045187,23/03/2022,1422013,37500.00,Consultants Fees
North West Leicestershire District Council,31UH,Street Management,Environment Transport,ENOT,Innovative Safety Systems Limited,A038664,23/03/2022,1422017,2286.88,Repairs - Parts
North West Leicestershire District Council,31UH,Housing Repairs,HRA Housing Repairs & Maintenance,HRAHRM,Castle Damp & Timber Specialists Limited,A046384,23/03/2022,1422018,3383.00,Legal & Professional Services
North West Leicestershire District Council,31UH,Street Management,Environment Transport,ENOT,Triscan Systems Limited,A036521,23/03/2022,1422024,8347.65,Operational Equipment
North West Leicestershire District Council,31UH,Finance,Financial Planning,FINPLA,Capita Business Services Ltd,A002968,30/03/2022,1421226,995.00,Computing
North West Leicestershire District Council,31UH,Street Management,Environment Waste Management,ENOWM,Something Different (UK) Ltd,A040393,30/03/2022,1421579,899.25,Publicity & Promotion
North West Leicestershire District Council,31UH,Street Management,Environment Parks,ENOP,Taylors Buildbase,A035303,30/03/2022,1421931,333.20,Operational Purchases
North West Leicestershire District Council,31UH,Street Management,Environment Transport,ENOT,Enterprise Rent-A-Car UK Ltd,A046419,30/03/2022,1422335,2314.88,Hire Of Operational Equipment
North West Leicestershire District Council,31UH,Economic Development,Business Focus Group,BFG,Tetra Tech Limited,A046837,30/03/2022,1422340,300.00,Legal & Professional Services
North West Leicestershire District Council,31UH,Street Management,Environment Parks,ENOP,Glasdon UK Ltd,A000671,17/03/2022,1421483,270.96,Operational Purchases
North West Leicestershire District Council,31UH,Property Services,Property Facilities Management,PROPFM,Calbarrie Ltd,A021932,30/03/2022,1420731,3613.80,General Repairs
North West Leicestershire District Council,31UH,Housing Repairs,HRA Housing Repairs & Maintenance,HRAHRM,NICEIC Sales,A026251,30/03/2022,1421087,495.00,Subscriptions
North West Leicestershire District Council,31UH,Leisure & Culture,Sport & Physical Activity,SPA,Ashby Life Limited,A032236,30/03/2022,1422147,1128.60,Heart Smart
North West Leicestershire District Council,31UH,Leisure & Culture,Sport & Physical Activity,SPA,Redacted-Personal Data,A047139,30/03/2022,1422188,402.00,Yoga Classes
North West Leicestershire District Council,31UH,Neighbourhoods & Communities,N & C Neighbourhoods,NACN,COALVILLE SIGNS LIMITED,N001114298,30/03/2022,1422228,930.00,Signage
North West Leicestershire District Council,31UH,Housing,HRA Housing Management,HRAHM,Aareon UK Ltd,A045197,30/03/2022,1422234,870.00,Contract Payments (Other) Ext
North West Leicestershire District Council,31UH,Neighbourhoods & Communities,N & C Community Safety,NACCS,Proudcastle,A040322,30/03/2022,1422240,4864.58,Cctv Control Room
North West Leicestershire District Council,31UH,Neighbourhoods & Communities,N & C Community Safety,NACCS,Proudcastle,A040322,30/03/2022,1422241,3985.07,Cctv Control Room
North West Leicestershire District Council,31UH,Neighbourhoods & Communities,N & C Community Safety,NACCS,Proudcastle,A040322,30/03/2022,1422242,13376.84,Cctv Control Room
North West Leicestershire District Council,31UH,Street Management,Environment Transport,ENOT,BTE Plant Sales Limited,A030364,09/03/2022,1419803,546.97,Repairs - Parts
North West Leicestershire District Council,31UH,Street Management,Environment - Street Scene,ESS,John Merison BMC Ltd,A001092,09/03/2022,1420452,299.51,Work in Default
North West Leicestershire District Council,31UH,Property Services,Property Commercial Lettings,PROPCL,John Merison BMC Ltd,A001092,09/03/2022,1420759,1200.00,General Repairs
North West Leicestershire District Council,31UH,Property Services,Property Facilities Management,PROPFM,Alliance Contracting Solutions Ltd,A043325,30/03/2022,1419289,1456.00,General Repairs (Property Services)
North West Leicestershire District Council,31UH,Neighbourhoods & Communities,N & C Community Safety,NACCS,Solon Security,A035272,30/03/2022,1422080,2312.50,Security Products
North West Leicestershire District Council,31UH,Planning & Development,Environment - Development Control,EDC,Graeme Renton Architecture,A047243,30/03/2022,1422137,450.00,External Legal Fees & Advice
North West Leicestershire District Council,31UH,Street Management,Environment Transport,ENOT,HGV Direct Ltd,A046956,30/03/2022,1422140,290.22,Repairs - Parts
North West Leicestershire District Council,31UH,Property Services,Property Commercial Lettings,PROPCL,Coalville Cleaning Services,A003037,30/03/2022,1422178,355.18,Contract Cleaning
North West Leicestershire District Council,31UH,Leisure & Culture,Sport & Physical Activity,SPA,S17 Photography,A032007,30/03/2022,1422182,260.00,Club Videography Project
North West Leicestershire District Council,31UH,Corporate Director,Human Resources,HR,Wiz Training and Development Ltd,A047272,30/03/2022,1422184,2075.00,Corporate Training
North West Leicestershire District Council,31UH,Planning & Development,Environment - Development Control,EDC,Dynamic Development Services Limited,A043778,30/03/2022,1422192,3528.00,External Legal Fees & Advice
North West Leicestershire District Council,31UH,Street Management,Environment Waste Management,ENOWM,Coral Products (Mouldings) Ltd,A046884,09/03/2022,1418519,11000.00,Contract Payments (Other) Ext
North West Leicestershire District Council,31UH,Property Services,Property Facilities Management,PROPFM,John Merison BMC Ltd,A001092,09/03/2022,1420149,625.00,Insp./Routine Maint.
North West Leicestershire District Council,31UH,Property Services,Property Commercial Lettings,PROPCL,John Merison BMC Ltd,A001092,09/03/2022,1420561,695.00,General Repairs
North West Leicestershire District Council,31UH,Housing Repairs,HRA Housing Repairs & Maintenance,HRAHRM,M3 Housing Limited,A032953,09/03/2022,1421086,2940.00,Computing
North West Leicestershire District Council,31UH,Housing,HRA Housing Management,HRAHM,Resolve Antisocial Behaviour,A035396,09/03/2022,1421138,1076.00,Legal & Professional Services
North West Leicestershire District Council,31UH,Environmental Health,Environmental Health & Licensing,EEHL,RH Environmental Limited,A037505,09/03/2022,1421202,2601.00,Training Expenses
North West Leicestershire District Council,31UH,Neighbourhoods & Communities,N & C Community Safety,NACCS,James Andrews Recruitment Solutions,A036290,09/03/2022,1421245,1106.25,Agency Staff
North West Leicestershire District Council,31UH,Housing,HRA Housing Management,HRAHM,One Consulting & Associates Ltd,A046600,09/03/2022,1421258,417.50,Contract Payments (Other) Ext
North West Leicestershire District Council,31UH,Neighbourhoods & Communities,N & C Community Safety,NACCS,Broadland Guarding Services Ltd,A042635,09/03/2022,1421259,3922.24,Service Contracts
North West Leicestershire District Council,31UH,Street Management,Environment - Street Scene,ESS,Ic2 CCTV & Security Specialists (UK) Ltd,A047245,09/03/2022,1421264,7764.00,Operational Purchases
North West Leicestershire District Council,31UH,Finance,Financial Planning,FINPLA,Sports & Leisure Management Ltd,A045556,09/03/2022,1421268,176277.65,Contract Payments (Other) Ext
North West Leicestershire District Council,31UH,Housing Repairs,HRA Housing Repairs & Maintenance,HRAHRM,Arco Limited,A000068,30/03/2022,1418960,749.85,Protective Clothing
North West Leicestershire District Council,31UH,Property Services,Property Facilities Management,PROPFM,Orbis Property Protection Ltd,A028149,30/03/2022,1421838,11695.00,Contract Cleaning
North West Leicestershire District Council,31UH,Property Services,Property Facilities Management,PROPFM,Orbis Property Protection Ltd,A028149,30/03/2022,1421839,13750.00,Contract Cleaning
North West Leicestershire District Council,31UH,Housing,HRA Performance & Business Support,HRAPBS,The Ecology Surveyor,A047370,30/03/2022,1422011,250.00,Legal & Professional Services
North West Leicestershire District Council,31UH,Street Management,Environment Transport,ENOT,Ford & Slater Group Ltd,A000625,30/03/2022,1422062,346.20,Repairs - Parts
North West Leicestershire District Council,31UH,Corporate Director,Human Resources,HR,Stephenson College,A000373,30/03/2022,1422075,2500.00,Corporate Training
North West Leicestershire District Council,31UH,Street Management,Environment Waste Management,ENOWM,Whitespace Work Software Ltd,A041243,09/03/2022,1419004,500.00,Publicity & Promotion
North West Leicestershire District Council,31UH,Street Management,Environment Parks,ENOP,Groundsman Tools Ltd,A030744,09/03/2022,1421224,789.99,Operational Purchases
North West Leicestershire District Council,31UH,Environmental Health,Environmental Health & Licensing,EEHL,VIP-System Limited,A045326,09/03/2022,1421247,653.87,Hackney Carriage - Plates & Badges
North West Leicestershire District Council,31UH,Street Management,Environment Transport,ENOT,Selby's Garage (Woodhouse) Ltd,A044011,09/03/2022,1421249,497.25,Hire Of Operational Equipment
North West Leicestershire District Council,31UH,Leisure & Culture,Cultural Services Arts & Events,CULTEV,D Walker,A038828,23/03/2022,1422005,787.00,N.W.L. Arts Festival
North West Leicestershire District Council,31UH,Chief Exec,Chief Executive,CHEX,AECOM Limited,A037801,23/03/2022,1422007,53193.00,Consultants Fees
North West Leicestershire District Council,31UH,Street Management,Environment - Street Scene,ESS,Coalville Cleaning Services,A003037,23/03/2022,1422014,906.75,Contract Cleaning
North West Leicestershire District Council,31UH,Housing Repairs,HRA Housing Repairs & Maintenance,HRAHRM,Second Element Ltd,A046693,23/03/2022,1422021,514.56,Service Contracts - Premises costs
North West Leicestershire District Council,31UH,Street Management,Environment Parks,ENOP,Eden Tree Care & Fencing Ltd,A047230,09/03/2022,1419620,2750.00,External Contractor Payments
North West Leicestershire District Council,31UH,Street Management,Environment Transport,ENOT,Riverside Truck Rental Ltd,A045702,09/03/2022,1420164,945.98,Hire Of Transport
North West Leicestershire District Council,31UH,Street Management,Environment - Street Scene,ESS,Coalville Cleaning Services,A003037,09/03/2022,1420736,613.80,Contract Cleaning
North West Leicestershire District Council,31UH,Street Management,Environment - Street Scene,ESS,London Fire Consultants & Design,A038408,09/03/2022,1420740,750.00,Health & Safety Repairs/Maintenance
North West Leicestershire District Council,31UH,Property Services,Property Facilities Management,PROPFM,John Merison BMC Ltd,A001092,09/03/2022,1420760,20397.12,Contract Payments (Other) Ext
North West Leicestershire District Council,31UH,Street Management,Environment Waste Management,ENOWM,J F Lloyd & Sons,A000991,09/03/2022,1421083,390.00,Operational Equipment
North West Leicestershire District Council,31UH,Neighbourhoods & Communities,N & C Community Safety,NACCS,James Andrews Recruitment Solutions,A036290,09/03/2022,1421095,1106.25,Agency Staff
North West Leicestershire District Council,31UH,Neighbourhoods & Communities,N & C Community Safety,NACCS,James Andrews Recruitment Solutions,A036290,09/03/2022,1421096,1106.25,Agency Staff
North West Leicestershire District Council,31UH,Neighbourhoods & Communities,N & C Community Safety,NACCS,James Andrews Recruitment Solutions,A036290,09/03/2022,1421097,1098.88,Agency Staff
North West Leicestershire District Council,31UH,Corporate Director,Human Resources,HR,Starfish,A047178,09/03/2022,1421099,7000.00,Employee Advertising
North West Leicestershire District Council,31UH,Corporate Director,Human Resources,HR,Starfish,A047178,09/03/2022,1421100,6625.00,Employee Advertising
North West Leicestershire District Council,31UH,Leisure & Culture,Cultural Services Arts & Events,CULTEV,Leicester Shire Promotions Ltd,A028765,09/03/2022,1421111,6825.00,Special Events
North West Leicestershire District Council,31UH,Legal & Democratic,Legal Services,LDLS,HB Editorial Services Ltd,A044792,09/03/2022,1421121,495.00,Employee Advertising
North West Leicestershire District Council,31UH,Housing,HRA Housing Management,HRAHM,One Consulting & Associates Ltd,A046600,09/03/2022,1421124,11272.50,Contract Payments (Other) Ext
North West Leicestershire District Council,31UH,Street Management,Environment Transport,ENOT,Logistics UK,A027981,09/03/2022,1421135,1800.00,Subscriptions
North West Leicestershire District Council,31UH,Street Management,Environment Transport,ENOT,HGV Direct Ltd,A046956,09/03/2022,1421137,530.00,Repairs - Parts
North West Leicestershire District Council,31UH,Information Technology,ICT Services,ICT,Freedom Communications (UK) Ltd,A032826,09/03/2022,1421148,520.82,C.O. - Call Charges
North West Leicestershire District Council,31UH,Information Technology,ICT Services,ICT,Freedom Communications (UK) Ltd,A032826,09/03/2022,1421149,534.43,C.O. - Call Charges
North West Leicestershire District Council,31UH,Finance,Financial Planning,FINPLA,Sports & Leisure Management Ltd,A045556,09/03/2022,1421173,72617.15,Payments To Contractor
North West Leicestershire District Council,31UH,Leisure & Culture,Cultural Services Arts & Events,CULTEV,The National Forest Company,A027538,09/03/2022,1421176,9000.00,National Forest & Beyond Partnership
North West Leicestershire District Council,31UH,Street Management,Environment Waste Management,ENOWM,County Drains Leicester Ltd,A024295,09/03/2022,1421181,851.00,General Repairs
North West Leicestershire District Council,31UH,Leisure & Culture,Cultural Services TIC,CULTIC,Leicester Shire Promotions Ltd,A028765,09/03/2022,1421190,500.00,Promotions Board Annual Event
North West Leicestershire District Council,31UH,Property Services,Property Commercial Lettings,PROPCL,Lambert Smith Hampton,A020974,30/03/2022,1422174,287.05,Commercial Unit Rental
North West Leicestershire District Council,31UH,Property Services,Property Commercial Lettings,PROPCL,Lambert Smith Hampton,A020974,30/03/2022,1422175,1709.59,Commercial Unit Rental
North West Leicestershire District Council,31UH,Property Services,Property Commercial Lettings,PROPCL,Lambert Smith Hampton,A020974,30/03/2022,1422176,6500.00,Commercial Unit Rental
North West Leicestershire District Council,31UH,Property Services,Property Commercial Lettings,PROPCL,Lambert Smith Hampton,A020974,30/03/2022,1422177,6500.00,Commercial Unit Rental
North West Leicestershire District Council,31UH,Property Services,Property Facilities Management,PROPFM,John Merison BMC Ltd,A001092,30/03/2022,1422180,5932.79,Asset Protection
North West Leicestershire District Council,31UH,Leisure & Culture,Cultural Services Arts & Events,CULTEV,Ashby Town Council,A045161,30/03/2022,1422191,500.00,Ashby Events - Road Closures
North West Leicestershire District Council,31UH,Street Management,Environment - Street Scene,ESS,Amazon Payments UK Ltd,A036743,30/03/2022,1422212,282.50,Operational Equipment
North West Leicestershire District Council,31UH,Corporate Director,Human Resources,HR,Starfish,A047178,09/03/2022,1421101,2600.00,Employee Advertising
North West Leicestershire District Council,31UH,Finance,Financial Planning,FINPLA,LAVAT Consulting Limited,A035908,09/03/2022,1421358,420.00,Training Expenses
North West Leicestershire District Council,31UH,Street Management,Environment Transport,ENOT,Mertrux Ltd,A035291,09/03/2022,1421373,262.87,Scheduled Servicing - Labour
North West Leicestershire District Council,31UH,Street Management,Environment Transport,ENOT,Mertrux Ltd,A035291,09/03/2022,1421386,365.37,Repairs - Parts
North West Leicestershire District Council,31UH,Street Management,Environment Transport,ENOT,Mertrux Ltd,A035291,09/03/2022,1421389,1250.50,Non Scheduled Maintenance - Parts
North West Leicestershire District Council,31UH,Planning & Development,Environment Planning Policy,EPP,Landmark Chambers,A036742,17/03/2022,1421441,2750.00,External Legal Fees & Advice
North West Leicestershire District Council,31UH,Information Technology,ICT Services,ICT,Openreach,A038837,17/03/2022,1421573,1613.68,Computing
North West Leicestershire District Council,31UH,Street Management,Environment - Street Scene,ESS,Midlands Co-operative  Ltd,A036454,17/03/2022,1421717,500.00,Welfare Funerals
North West Leicestershire District Council,31UH,Street Management,Environment Waste Management,ENOWM,O Kay Engineering Services Ltd,A041943,23/03/2022,1420788,2375.00,Operational Equipment
North West Leicestershire District Council,31UH,Street Management,Environment Transport,ENOT,Watling JCB Ltd,A032114,23/03/2022,1421432,977.00,Repairs - Parts
North West Leicestershire District Council,31UH,Street Management,Environment Transport,ENOT,Watling JCB Ltd,A032114,23/03/2022,1421433,779.30,Repairs - Parts
North West Leicestershire District Council,31UH,Street Management,Environment Transport,ENOT,Lubrication Limited,A047091,23/03/2022,1421461,4990.00,Transport Costs - Engine Oil
North West Leicestershire District Council,31UH,Information Technology,ICT Services,ICT,Capita Business Services Ltd,A002968,23/03/2022,1421707,533.54,Computing
North West Leicestershire District Council,31UH,Housing Repairs,HRA Housing Repairs & Maintenance,HRAHRM,Second Element Ltd,A046693,23/03/2022,1421742,324.67,Service Contracts - Premises costs
North West Leicestershire District Council,31UH,Economic Development,Business Focus Group,BFG,Simon Foote Architects,A045677,23/03/2022,1421744,2300.00,Legal & Professional Services
North West Leicestershire District Council,31UH,Economic Development,Business Focus Group,BFG,AJS Structural Design,A046782,23/03/2022,1421745,2500.00,Grants
North West Leicestershire District Council,31UH,Leisure & Culture,Sport & Physical Activity,SPA,Castle Donington College,A000302,23/03/2022,1421754,3200.00,Contributions
North West Leicestershire District Council,31UH,Finance,Financial Planning,FINPLA,CIPFA Business Limited,A036780,23/03/2022,1421784,3980.00,Subscriptions
North West Leicestershire District Council,31UH,Street Management,Environment Parks,ENOP,R Pochin Limited,A001313,23/03/2022,1421787,333.50,Operational Purchases
North West Leicestershire District Council,31UH,Street Management,Environment Transport,ENOT,Eclipse Automotive Technology Ltd,A047244,23/03/2022,1421791,3804.00,Operational Equipment
North West Leicestershire District Council,31UH,Street Management,Environment Transport,ENOT,Terberg Matec UK Limited,A001647,23/03/2022,1421800,1454.91,Repairs - Parts
North West Leicestershire District Council,31UH,Street Management,Environment Transport,ENOT,PR HORTICULTURAL SERVICES LTD,N001132009,23/03/2022,1421805,280.22,Purchases
North West Leicestershire District Council,31UH,Street Management,Environment Transport,ENOT,Ford & Slater Group Ltd,A000625,23/03/2022,1421811,960.48,Purchases
North West Leicestershire District Council,31UH,Street Management,Environment Transport,ENOT,Ford & Slater Group Ltd,A000625,23/03/2022,1421812,251.86,Repairs - Parts
North West Leicestershire District Council,31UH,Street Management,Environment Waste Management,ENOWM,Staysafe PPE Ltd,A046581,30/03/2022,1422378,441.70,Protective Clothing
North West Leicestershire District Council,31UH,Housing Repairs,HRA Housing Repairs & Maintenance,HRAHRM,Dalrod UK Ltd,A046051,30/03/2022,1422382,3556.02,Sewerage & Environmental
North West Leicestershire District Council,31UH,Housing Repairs,HRA Housing Repairs & Maintenance,HRAHRM,Dalrod UK Ltd,A046051,30/03/2022,1422383,397.14,Sewerage & Environmental
North West Leicestershire District Council,31UH,Street Management,Environment Waste Management,ENOWM,Staysafe PPE Ltd,A046581,30/03/2022,1422385,389.75,Protective Clothing
North West Leicestershire District Council,31UH,Housing Repairs,HRA Housing Repairs & Maintenance,HRAHRM,Rybka,A046735,30/03/2022,1419543,1102.50,General Repairs
North West Leicestershire District Council,31UH,Housing Repairs,HRA Housing Repairs & Maintenance,HRAHRM,Rybka,A046735,30/03/2022,1420060,4977.00,General Repairs
North West Leicestershire District Council,31UH,Street Management,Environment Transport,ENOT,Watson Fuels,A047235,30/03/2022,1420808,20621.54,Purchases
North West Leicestershire District Council,31UH,Planning & Development,Environment - Development Control,EDC,TH-Environmental Ltd,A046902,30/03/2022,1422223,5400.00,River Mease Project Expenditure
North West Leicestershire District Council,31UH,Leisure & Culture,Sport & Physical Activity,SPA,Life Mat Services,A047365,30/03/2022,1422333,1000.00,Exercise Referral
North West Leicestershire District Council,31UH,Housing Repairs,HRA Housing Repairs & Maintenance,HRAHRM,NICEIC Sales,A026251,30/03/2022,1422355,330.00,Legal & Professional Services
North West Leicestershire District Council,31UH,Leisure & Culture,Cultural Services Arts & Events,CULTEV,Field and Lawn Ltd,A042594,30/03/2022,1422361,1865.00,Coalville Christmas Decorations
North West Leicestershire District Council,31UH,Street Management,Environment Parks,ENOP,Teleshore (UK) Ltd,A030449,30/03/2022,1422364,1160.00,Training Expenses
North West Leicestershire District Council,31UH,Planning & Development,Environment - Development Control,EDC,Jonathan Gaynor Planning and Enforcement Services,A047213,30/03/2022,1422368,2065.00,External Legal Fees & Advice
North West Leicestershire District Council,31UH,Neighbourhoods & Communities,N & C Neighbourhoods,NACN,Citizens Advice Leicestershire,A043282,30/03/2022,1422379,7150.00,Contain Fund Payment
North West Leicestershire District Council,31UH,Housing,HRA Housing Management,HRAHM,James Andrews Recruitment Solutions,A036290,17/03/2022,1421403,908.75,Agency Staff
North West Leicestershire District Council,31UH,Legal & Democratic,Electoral & Land Charges,LDELC,Leicestershire County Council,A027423,17/03/2022,1421439,1041.00,LCc Search Fees
North West Leicestershire District Council,31UH,Corporate Director,Human Resources,HR,Wider Plan Ltd,A043948,17/03/2022,1421465,1048.00,Purchases
North West Leicestershire District Council,31UH,Street Management,Environment Transport,ENOT,HGV Direct Ltd,A046956,17/03/2022,1421501,437.39,Purchases
North West Leicestershire District Council,31UH,Street Management,Environment Transport,ENOT,Ford Motor Company T/A Parts Plus,A045765,17/03/2022,1421530,376.71,Repairs - Parts
North West Leicestershire District Council,31UH,Street Management,Environment Transport,ENOT,Ford Motor Company T/A Parts Plus,A045765,17/03/2022,1421531,267.78,Repairs - Parts
North West Leicestershire District Council,31UH,Street Management,Environment - Street Scene,ESS,IGPP Limited,A046944,30/03/2022,1420301,592.20,Training Expenses
North West Leicestershire District Council,31UH,Street Management,Environment - Street Scene,ESS,Nisbets Plc,A007087,30/03/2022,1421122,399.92,Contract Payments (Other) Ext
North West Leicestershire District Council,31UH,Street Management,Environment Transport,ENOT,Pakawaste Ltd,A032627,30/03/2022,1421189,1560.00,General Repairs
North West Leicestershire District Council,31UH,Street Management,Environment Parks,ENOP,Vitax Limited,A031093,30/03/2022,1421399,319.97,Operational Purchases
North West Leicestershire District Council,31UH,Leisure & Culture,Sport & Physical Activity,SPA,Algeco UK Limited,A005413,30/03/2022,1421503,472.00,Portable Accommodation and Secure Storage
North West Leicestershire District Council,31UH,Street Management,Environment - Street Scene,ESS,Mobile VMS Ltd,A047318,30/03/2022,1421556,3680.00,Litter Picking Equipment
North West Leicestershire District Council,31UH,Street Management,Environment - Street Scene,ESS,John Merison BMC Ltd,A001092,30/03/2022,1421558,295.00,General Repairs
North West Leicestershire District Council,31UH,Corporate Director,Corporate Director,CORDI,One Consulting & Associates Ltd,A046600,30/03/2022,1422008,11063.75,Contract Payments (Other) Ext
North West Leicestershire District Council,31UH,Information Technology,ICT Services,ICT,Freedom Communications (UK) Ltd,A032826,30/03/2022,1422037,1526.30,Operational Equipment
North West Leicestershire District Council,31UH,Information Technology,ICT Services,ICT,ACS Systems (UK) Ltd T/a ACS Office Solutions,A043447,30/03/2022,1422039,1230.00,Computing
North West Leicestershire District Council,31UH,Street Management,Environment Transport,ENOT,Enterprise Rent-A-Car UK Ltd,A046419,30/03/2022,1422061,633.92,Hire Of Transport
North West Leicestershire District Council,31UH,Street Management,Environment Transport,ENOT,Hako Machines Limited,A034237,30/03/2022,1422063,399.51,Repairs - Parts
North West Leicestershire District Council,31UH,Information Technology,ICT Services,ICT,Freedom Communications (UK) Ltd,A032826,30/03/2022,1422074,4003.88,Computing
North West Leicestershire District Council,31UH,Street Management,Environment - Street Scene,ESS,Nisbets Plc,A007087,30/03/2022,1422078,2399.80,Contract Payments (Other) Ext
North West Leicestershire District Council,31UH,Street Management,Environment - Street Scene,ESS,Printvision UK Ltd,A039259,30/03/2022,1422079,267.80,Publicity And Information
North West Leicestershire District Council,31UH,Street Management,Environment Transport,ENOT,Terberg Matec UK Limited,A001647,30/03/2022,1422088,1468.41,Repairs - Parts
North West Leicestershire District Council,31UH,Street Management,Environment Transport,ENOT,Riverside Truck Rental Ltd,A045702,30/03/2022,1422091,250.00,Hire Of Transport
North West Leicestershire District Council,31UH,Street Management,Environment Transport,ENOT,Calor Gas Limited,A032686,30/03/2022,1422099,1474.54,Gas
North West Leicestershire District Council,31UH,Street Management,Environment Transport,ENOT,Coalville Cleaning Services,A003037,30/03/2022,1422100,1674.00,Contract Cleaning
North West Leicestershire District Council,31UH,Street Management,Environment Transport,ENOT,Johnsons Apparelmaster,A044536,30/03/2022,1422101,374.40,Consumable Materials
North West Leicestershire District Council,31UH,Legal & Democratic,Legal Services,LDLS,HB Editorial Services Ltd,A044792,30/03/2022,1422120,495.00,Employee Advertising
North West Leicestershire District Council,31UH,Information Technology,ICT Services,ICT,Oracle Corporation UK Ltd.,A036174,30/03/2022,1422125,751.24,Admin Equipment - Maintenance
North West Leicestershire District Council,31UH,Street Management,Environment - Street Scene,ESS,One Stop Promotions (Leics) Ltd,A001240,30/03/2022,1422139,303.00,Grants
North West Leicestershire District Council,31UH,Street Management,Environment Transport,ENOT,Dennis Eagle Limited,A000522,30/03/2022,1422161,263.31,Repairs - Parts
North West Leicestershire District Council,31UH,Finance,Financial Planning,FINPLA,Sports & Leisure Management Ltd,A045556,30/03/2022,1422163,42397.21,Payments To Contractor
North West Leicestershire District Council,31UH,Finance,Financial Planning,FINPLA,Sports & Leisure Management Ltd,A045556,30/03/2022,1422164,16536.00,Payments To Contractor
North West Leicestershire District Council,31UH,Environmental Health,Environmental Health & Licensing,EEHL,Eville And Jones Limited,A033670,09/03/2022,1420378,3220.90,Vet Inspection
North West Leicestershire District Council,31UH,Street Management,Environment Parks,ENOP,Gilvar Lining Ltd,A040848,09/03/2022,1420643,975.00,Routine Ground Maintenance
North West Leicestershire District Council,31UH,Information Technology,ICT Services,ICT,Idox Software Ltd,A034157,09/03/2022,1420684,84264.58,Software Licences
North West Leicestershire District Council,31UH,Property Services,Property Facilities Management,PROPFM,Second Element Ltd,A046693,09/03/2022,1421098,815.00,Service Contracts - Premises costs
North West Leicestershire District Council,31UH,Property Services,Property Facilities Management,PROPFM,Regarde Security Ltd,A013049,09/03/2022,1421108,386.40,Building Security
North West Leicestershire District Council,31UH,Property Services,Property Facilities Management,PROPFM,Regarde Security Ltd,A013049,09/03/2022,1421109,515.20,Security Services
North West Leicestershire District Council,31UH,Street Management,Environment - Street Scene,ESS,Reflec Signs & Graphics Ltd,A025348,09/03/2022,1421112,910.80,Publicity & Promotion
North West Leicestershire District Council,31UH,Street Management,Environment Parks,ENOP,Regarde Security Ltd,A013049,09/03/2022,1421127,372.60,Security Services
North West Leicestershire District Council,31UH,Environmental Health,Environmental Health & Licensing,EEHL,Tennals Pest Control,A045705,09/03/2022,1421128,1675.50,External Contractor Payments
North West Leicestershire District Council,31UH,Environmental Health,Environmental Health & Licensing,EEHL,Association Of Port Health Authorities,A000103,09/03/2022,1421130,1179.00,Subscriptions
North West Leicestershire District Council,31UH,Housing Repairs,HRA Housing Repairs & Maintenance,HRAHRM,Ctrack Ltd,A045628,09/03/2022,1421198,1576.80,Operational Purchases
North West Leicestershire District Council,31UH,Street Management,Environment Transport,ENOT,Enterprise Rent-A-Car UK Ltd,A046419,09/03/2022,1421214,740.88,Hire Of Transport
North West Leicestershire District Council,31UH,Street Management,Environment Transport,ENOT,Enterprise Flex-E-Rent,A046516,09/03/2022,1421215,1210.88,Hire Of Transport
North West Leicestershire District Council,31UH,Street Management,Environment Transport,ENOT,Home IQ Automation & Control,A045265,09/03/2022,1421216,260.00,General Repairs
North West Leicestershire District Council,31UH,Environment Directorate,Environment - Directorate Support,ENVDS,Firebrand Training Ltd,A046104,09/03/2022,1421221,2359.00,Training Expenses
North West Leicestershire District Council,31UH,Property Services,Property Facilities Management,PROPFM,John Merison BMC Ltd,A001092,09/03/2022,1421227,957.41,General Repairs
North West Leicestershire District Council,31UH,Property Services,Property Facilities Management,PROPFM,John Merison BMC Ltd,A001092,09/03/2022,1421228,2076.80,General Repairs
North West Leicestershire District Council,31UH,Leisure & Culture,Cultural Services Arts & Events,CULTEV,BE Furniture Ltd t/a BE Event Hire,A015349,02/03/2022,1420443,258.60,N.W.L. Arts Festival
North West Leicestershire District Council,31UH,Property Services,Property Commercial Lettings,PROPCL,Moira Furnace Museum Trust Ltd,A001136,02/03/2022,1420657,675.60,Contract Cleaning
North West Leicestershire District Council,31UH,Chief Exec,Chief Executive,CHEX,Edwards & Edwards Consultancy Ltd,A041694,02/03/2022,1420732,680.00,Consultants Fees
North West Leicestershire District Council,31UH,Housing,HRA Housing Management,HRAHM,James Andrews Recruitment Solutions,A036290,02/03/2022,1420745,953.86,Agency Staff
North West Leicestershire District Council,31UH,Housing,HRA Housing Management,HRAHM,TPAS Limited,A028863,02/03/2022,1420748,1479.00,Public Transport
North West Leicestershire District Council,31UH,Street Management,Environment - Street Scene,ESS,National Association of British,A032899,02/03/2022,1420749,300.00,Training Expenses
North West Leicestershire District Council,31UH,Leisure & Culture,Cultural Services Arts & Events,CULTEV,Robgeepoetry,A047241,02/03/2022,1420787,250.00,N.W.L. Arts Festival
North West Leicestershire District Council,31UH,Housing,HRA Housing Management,HRAHM,exi,A045557,02/03/2022,1420816,6250.00,Legal & Professional Services
North West Leicestershire District Council,31UH,Street Management,Environment Transport,ENOT,Refuse Vehicle Solutions Ltd,A047317,02/03/2022,1420822,3990.00,Hire Of Transport
North West Leicestershire District Council,31UH,Street Management,Environment Transport,ENOT,Refuse Vehicle Solutions Ltd,A047317,02/03/2022,1420823,2850.00,Hire Of Transport
North West Leicestershire District Council,31UH,Street Management,Environment Transport,ENOT,Refuse Vehicle Solutions Ltd,A047317,02/03/2022,1420824,1330.00,Hire Of Transport
North West Leicestershire District Council,31UH,Street Management,Environment Transport,ENOT,Refuse Vehicle Solutions Ltd,A047317,02/03/2022,1420825,4180.00,Hire Of Transport
North West Leicestershire District Council,31UH,Street Management,Environment Transport,ENOT,Refuse Vehicle Solutions Ltd,A047317,02/03/2022,1420826,4300.00,Hire Of Transport
North West Leicestershire District Council,31UH,Street Management,Environment Transport,ENOT,Riverside Truck Rental Ltd,A045702,02/03/2022,1420827,2448.30,Vehicle Hire
North West Leicestershire District Council,31UH,Street Management,Environment Transport,ENOT,Riverside Truck Rental Ltd,A045702,02/03/2022,1420828,5250.00,Hire Of Transport
North West Leicestershire District Council,31UH,Street Management,Environment Transport,ENOT,Riverside Truck Rental Ltd,A045702,02/03/2022,1420829,2350.00,Hire Of Transport
North West Leicestershire District Council,31UH,Street Management,Environment Transport,ENOT,Riverside Truck Rental Ltd,A045702,02/03/2022,1420830,3759.00,Hire Of Transport
North West Leicestershire District Council,31UH,Street Management,Environment Transport,ENOT,Riverside Truck Rental Ltd,A045702,02/03/2022,1420831,5565.00,Hire Of Transport
North West Leicestershire District Council,31UH,Street Management,Environment Transport,ENOT,J F Lloyd & Sons,A000991,02/03/2022,1420844,390.00,Hire Of Operational Equipment
North West Leicestershire District Council,31UH,Street Management,Environment Transport,ENOT,Anderson Commercials Limited,A033469,02/03/2022,1420873,453.00,Operational Equipment - Rep & Maint
North West Leicestershire District Council,31UH,Legal & Democratic,Legal Services,LDLS,Browne Jacobson LLP,A042988,02/03/2022,1421030,1003.00,PRE - Public Realm Masterplan
North West Leicestershire District Council,31UH,Property Services,Property Facilities Management,PROPFM,Second Element Ltd,A046693,17/03/2022,1421559,759.26,Service Contracts - Premises costs
North West Leicestershire District Council,31UH,Property Services,Property Facilities Management,PROPFM,iG Surveys,A046433,17/03/2022,1421674,450.00,Legal & Professional Services
North West Leicestershire District Council,31UH,Corporate Director,Human Resources,HR,East Midlands Councils,A008942,17/03/2022,1421712,525.00,Corporate Training
North West Leicestershire District Council,31UH,Planning & Development,Environment - Development Control,EDC,GHM Planning Limited,A034296,23/03/2022,1421656,4506.00,Agency Staff
North West Leicestershire District Council,31UH,Planning & Development,Environment - Development Control,EDC,Rob Thompson Urbanism Limited,A045846,23/03/2022,1421657,2100.00,Urban Design/Our Place Expenditure
North West Leicestershire District Council,31UH,Planning & Development,Environment - Development Control,EDC,Rob Thompson Urbanism Limited,A045846,23/03/2022,1421658,3675.00,Urban Design/Our Place Expenditure
North West Leicestershire District Council,31UH,Planning & Development,Environment - Development Control,EDC,TMP Worldwide Ltd,A045319,23/03/2022,1421666,289.60,Advertising
North West Leicestershire District Council,31UH,Planning & Development,Environment - Development Control,EDC,TMP Worldwide Ltd,A045319,23/03/2022,1421673,289.60,Advertising
North West Leicestershire District Council,31UH,Planning & Development,Environment - Development Control,EDC,GHM Planning Limited,A034296,23/03/2022,1421675,4693.00,Agency Staff
North West Leicestershire District Council,31UH,Street Management,Environment Transport,ENOT,Mertrux Ltd,A035291,23/03/2022,1421818,511.56,Repairs - Parts
North West Leicestershire District Council,31UH,Legal & Democratic,Member Services,LDMS,Crestline Printers Limited,A000434,23/03/2022,1421841,672.00,External Printing
North West Leicestershire District Council,31UH,Housing,HRA Housing Management,HRAHM,Barlow Blinds,A040305,23/03/2022,1421849,460.00,Operational Purchases
North West Leicestershire District Council,31UH,Street Management,Environment - Street Scene,ESS,Derby City Council,A042168,23/03/2022,1421094,325.00,Training Expenses
North West Leicestershire District Council,31UH,Planning & Development,Environment - Development Control,EDC,RAS Town Planning Services,A045293,23/03/2022,1421659,2613.00,External Legal Fees & Advice
North West Leicestershire District Council,31UH,Planning & Development,Environment - Development Control,EDC,RAS Town Planning Services,A045293,23/03/2022,1421660,4446.00,External Legal Fees & Advice
North West Leicestershire District Council,31UH,Planning & Development,Environment - Development Control,EDC,Jonathan Gaynor Planning and Enforcement Services,A047213,23/03/2022,1421662,1575.00,External Legal Fees & Advice
North West Leicestershire District Council,31UH,Planning & Development,Environment - Development Control,EDC,Ilex Tree Services,A046556,23/03/2022,1421663,1243.00,External Legal Fees & Advice
North West Leicestershire District Council,31UH,Planning & Development,Environment - Development Control,EDC,Rob Thompson Urbanism Limited,A045846,23/03/2022,1421669,2625.00,Urban Design/Our Place Expenditure
North West Leicestershire District Council,31UH,Planning & Development,Environment - Development Control,EDC,Rob Thompson Urbanism Limited,A045846,23/03/2022,1421670,5568.75,Urban Design/Our Place Expenditure
North West Leicestershire District Council,31UH,Street Management,Environment Waste Management,ENOWM,Straight Plc,A024906,23/03/2022,1421783,1638.00,General Materials
North West Leicestershire District Council,31UH,Chief Exec,Chief Executive,CHEX,Corstorphine & Wright (Birmingham Studio) Ltd,A044311,23/03/2022,1421789,6000.00,Legal & Professional Services
North West Leicestershire District Council,31UH,Chief Exec,Chief Executive,CHEX,Corstorphine & Wright (Birmingham Studio) Ltd,A044311,23/03/2022,1421790,500.00,Legal & Professional Services
North West Leicestershire District Council,31UH,Street Management,Environment Waste Management,ENOWM,Straight Plc,A024906,23/03/2022,1421822,16170.00,General Materials
North West Leicestershire District Council,31UH,Street Management,Environment - Street Scene,ESS,Ibstock Community Voice,A043359,23/03/2022,1421834,1320.00,Advertising
North West Leicestershire District Council,31UH,Legal & Democratic,Civic Expenses,LDCE,Civica Ltd,A021357,23/03/2022,1421843,7250.00,Computing
North West Leicestershire District Council,31UH,Legal & Democratic,Civic Expenses,LDCE,Civica Ltd,A021357,23/03/2022,1421844,7250.00,Computing
North West Leicestershire District Council,31UH,Legal & Democratic,Civic Expenses,LDCE,Civica Ltd,A021357,23/03/2022,1421845,7250.00,Computing
North West Leicestershire District Council,31UH,Leisure & Culture,Cultural Services Arts & Events,CULTEV,Mantle Community Arts Limited,A001039,23/03/2022,1421928,7000.00,Grant - Mantle Arts
North West Leicestershire District Council,31UH,Housing,HRA Housing Management,HRAHM,Aareon UK Ltd,A045197,23/03/2022,1421929,870.00,Contract Payments (Other) Ext
North West Leicestershire District Council,31UH,Housing Repairs,HRA Housing Repairs & Maintenance,HRAHRM,Aldridge Property Preservation Ltd,A037990,23/03/2022,1421940,2267.00,Legal & Professional Services
North West Leicestershire District Council,31UH,Street Management,Environment - Street Scene,ESS,exi,A045557,23/03/2022,1421942,2750.00,Contract Payments (Other) Ext
North West Leicestershire District Council,31UH,Leisure & Culture,Sport & Physical Activity,SPA,Algeco UK Limited,A005413,02/03/2022,1420454,522.58,Portable Accommodation and Secure Storage
North West Leicestershire District Council,31UH,Finance,Housing Benefits,BENS,Hinckley & Bosworth Borough Council,A000770,02/03/2022,1420801,38892.00,Shared Revs & Bens Partnership costs
North West Leicestershire District Council,31UH,Neighbourhoods & Communities,N & C Community Safety,NACCS,Cirrus Research,A042935,02/03/2022,1420804,446.00,Community Safety Expenditure
North West Leicestershire District Council,31UH,Planning & Development,Environment Planning Policy,EPP,Clearlead Consulting Ltd,A044888,02/03/2022,1420805,4901.25,Consultants Fees
North West Leicestershire District Council,31UH,Leisure & Culture,Sport & Physical Activity,SPA,The Apollo Partnership Trust,A034793,02/03/2022,1420809,23369.00,Sports and Physical Activity Commissioning Plan
North West Leicestershire District Council,31UH,Planning & Development,Environment Planning Policy,EPP,Land Use Consultants Ltd,A044090,02/03/2022,1420813,4676.00,Consultants Fees
North West Leicestershire District Council,31UH,Street Management,Environment Transport,ENOT,Ford Motor Company T/A Parts Plus,A045765,02/03/2022,1420834,372.50,Repairs - Parts
North West Leicestershire District Council,31UH,Street Management,Environment Transport,ENOT,Mobile Hydraulics Ltd,A001131,02/03/2022,1420835,502.60,Repairs - Parts
North West Leicestershire District Council,31UH,Street Management,Environment Transport,ENOT,Lodge Tyre Co Ltd,A004457,02/03/2022,1420837,302.72,Repairs - Parts
North West Leicestershire District Council,31UH,Street Management,Environment Transport,ENOT,Lodge Tyre Co Ltd,A004457,02/03/2022,1420838,320.00,Repairs - Parts
North West Leicestershire District Council,31UH,Street Management,Environment Transport,ENOT,Enterprise Rent-A-Car UK Ltd,A046419,02/03/2022,1420867,568.12,Hire Of Transport
North West Leicestershire District Council,31UH,Street Management,Environment Transport,ENOT,Coalville Cleaning Services,A003037,02/03/2022,1420868,1450.80,Contract Cleaning
North West Leicestershire District Council,31UH,Street Management,Environment Transport,ENOT,Calor Gas Limited,A032686,02/03/2022,1420869,1522.78,Gas
North West Leicestershire District Council,31UH,Street Management,Environment Transport,ENOT,Bucher Municipal Limited,A039355,02/03/2022,1420871,414.60,Repairs - Parts
North West Leicestershire District Council,31UH,Street Management,Environment Transport,ENOT,Boc Limited,A000193,02/03/2022,1420872,454.53,Operational Equipment
North West Leicestershire District Council,31UH,Property Services,Property Facilities Management,PROPFM,Second Element Ltd,A046693,02/03/2022,1421027,739.14,Service Contracts - Premises costs
North West Leicestershire District Council,31UH,Housing Repairs,HRA Housing Repairs & Maintenance,HRAHRM,Alliance Consulting Solutions Ltd,A043783,30/03/2022,1419050,2209.80,General Repairs
North West Leicestershire District Council,31UH,Housing Repairs,HRA Housing Repairs & Maintenance,HRAHRM,Alliance Consulting Solutions Ltd,A043783,30/03/2022,1419051,5986.55,General Repairs
North West Leicestershire District Council,31UH,Information Technology,ICT Services,ICT,Multidata (Europe) Ltd,A032931,30/03/2022,1421655,443.90,Building Security
North West Leicestershire District Council,31UH,Leisure & Culture,Sport & Physical Activity,SPA,B-Buddies Cycle Training,A046032,30/03/2022,1422189,662.64,Health Initiatives
North West Leicestershire District Council,31UH,Leisure & Culture,Sport & Physical Activity,SPA,B-Buddies Cycle Training,A046032,30/03/2022,1422190,270.00,Health Initiatives
North West Leicestershire District Council,31UH,Street Management,Environment - Street Scene,ESS,National Market Traders Federation,A037296,30/03/2022,1422224,250.00,Subscriptions
North West Leicestershire District Council,31UH,Housing,HRA Housing Management,HRAHM,Aareon UK Ltd,A045197,30/03/2022,1422230,870.00,Contract Payments (Other) Ext
North West Leicestershire District Council,31UH,Housing,HRA Housing Management,HRAHM,Aareon UK Ltd,A045197,30/03/2022,1422231,435.00,Contract Payments (Other) Ext
North West Leicestershire District Council,31UH,Housing,HRA Housing Management,HRAHM,Aareon UK Ltd,A045197,30/03/2022,1422232,870.00,Contract Payments (Other) Ext
North West Leicestershire District Council,31UH,Housing,HRA Housing Management,HRAHM,Aareon UK Ltd,A045197,30/03/2022,1422233,870.00,Contract Payments (Other) Ext
North West Leicestershire District Council,31UH,Housing,HRA Housing Management,HRAHM,Aareon UK Ltd,A045197,30/03/2022,1422235,3480.00,Contract Payments (Other) Ext
North West Leicestershire District Council,31UH,Housing,HRA Housing Management,HRAHM,Aareon UK Ltd,A045197,30/03/2022,1422236,870.00,payments To Contractor
North West Leicestershire District Council,31UH,Finance,Financial Planning,FINPLA,Sports & Leisure Management Ltd,A045556,30/03/2022,1422238,761224.11,Contract Payments (Other) Ext
North West Leicestershire District Council,31UH,Finance,Financial Planning,FINPLA,Sports & Leisure Management Ltd,A045556,30/03/2022,1422239,376535.41,Contract Payments (Other) Ext
North West Leicestershire District Council,31UH,Street Management,Environment - Street Scene,ESS,Safety Case Consultants Limited,A047234,30/03/2022,1422244,4500.00,Consultants Fees
North West Leicestershire District Council,31UH,Information Technology,ICT Services,ICT,Infosec Cloud Ltd,A039730,17/03/2022,1420275,3993.66,Admin Equipment - Maintenance
North West Leicestershire District Council,31UH,Information Technology,ICT Services,ICT,Idox Software Ltd,A034157,17/03/2022,1420688,5503.26,Admin Equipment - Maintenance
North West Leicestershire District Council,31UH,Information Technology,ICT Services,ICT,Idox Software Ltd,A034157,17/03/2022,1420789,4225.75,Computer Software Maintenance
North West Leicestershire District Council,31UH,Street Management,Environment - Street Scene,ESS,RH Environmental Limited,A037505,17/03/2022,1421222,1260.50,Subscriptions
North West Leicestershire District Council,31UH,Information Technology,ICT Services,ICT,House on the Hill Software Ltd,A042199,17/03/2022,1421248,10080.00,Admin Equipment - Maintenance
North West Leicestershire District Council,31UH,Information Technology,ICT Services,ICT,Chess Cybersecurity Formerly Foursys Ltd,A029908,17/03/2022,1421255,2589.60,Cybersecurity Expenditure
North West Leicestershire District Council,31UH,Neighbourhoods & Communities,N & C Community Safety,NACCS,British Telecommunications Plc,A000233,17/03/2022,1421260,4698.55,Telecommunications
North West Leicestershire District Council,31UH,Neighbourhoods & Communities,N & C Community Safety,NACCS,Leicestershire County Council,A000950,17/03/2022,1421261,1200.63,Computer Software Maintenance
North West Leicestershire District Council,31UH,Property Services,Property Facilities Management,PROPFM,Coalville Cleaning Services,A003037,17/03/2022,1421275,2377.28,Contract Cleaning
North West Leicestershire District Council,31UH,Finance,Financial Planning,FINPLA,Zurich Municipal,A001835,17/03/2022,1421394,5260.57,Insurances
North West Leicestershire District Council,31UH,Corporate Director,Human Resources,HR,Learning Pool Ltd,A039508,17/03/2022,1421396,3125.00,Corporate Training
North West Leicestershire District Council,31UH,Street Management,Environment Parks,ENOP,FLP Ltd (Division - Online Playrgrounds),A042423,17/03/2022,1421398,944.00,General Repairs
North West Leicestershire District Council,31UH,Neighbourhoods & Communities,N & C Community Safety,NACCS,The CCTV User Group Ltd,A043781,17/03/2022,1421409,480.00,Community Safety Expenditure
North West Leicestershire District Council,31UH,Property Services,Property Facilities Management,PROPFM,Readings Property Group Ltd,A045486,17/03/2022,1421449,350.00,Legal & Professional Services
North West Leicestershire District Council,31UH,Leisure & Culture,Cultural Services Arts & Events,CULTEV,Lambert Smith Hampton,A020974,17/03/2022,1421457,300.00,N.W.L. Arts Festival
North West Leicestershire District Council,31UH,Leisure & Culture,Cultural Services Arts & Events,CULTEV,Field and Lawn Ltd,A042594,17/03/2022,1421458,750.00,Coalville Christmas Decorations
North West Leicestershire District Council,31UH,Information Technology,ICT Services,ICT,Six Degrees Technology Group Ltd,A044205,17/03/2022,1421459,20133.11,Admin Equipment - Maintenance
North West Leicestershire District Council,31UH,Leisure & Culture,Cultural Services Arts & Events,CULTEV,Leicestershire County Council,A000950,17/03/2022,1421460,675.00,Room Hire
North West Leicestershire District Council,31UH,Environmental Health,Environmental Health & Licensing,EEHL,Eville And Jones Limited,A033670,17/03/2022,1421463,3168.95,Vet Inspection
North West Leicestershire District Council,31UH,Corporate Director,Human Resources,HR,Health Management Ltd,A038840,17/03/2022,1421466,1334.50,Medical Fees
North West Leicestershire District Council,31UH,Corporate Director,Human Resources,HR,Wider Plan Ltd,A043948,17/03/2022,1421467,600.00,Medical Fees
North West Leicestershire District Council,31UH,Corporate Director,Human Resources,HR,Wider Plan Ltd,A043948,17/03/2022,1421468,562.00,Employee Benefits Admin Cost
North West Leicestershire District Council,31UH,Street Management,Environment Transport,ENOT,HGV Direct Ltd,A046956,17/03/2022,1421516,259.20,Purchases
North West Leicestershire District Council,31UH,Street Management,Environment Transport,ENOT,J F Lloyd & Sons,A000991,30/03/2022,1422097,260.00,Hire Of Operational Equipment
North West Leicestershire District Council,31UH,Street Management,Environment Transport,ENOT,J F Lloyd & Sons,A000991,30/03/2022,1422098,390.00,Hire Of Operational Equipment
North West Leicestershire District Council,31UH,Street Management,Environment Transport,ENOT,HGV Direct Ltd,A046956,30/03/2022,1422112,480.70,Repairs - Parts
North West Leicestershire District Council,31UH,Street Management,Environment Transport,ENOT,HGV Direct Ltd,A046956,30/03/2022,1422114,394.72,Repairs - Parts
North West Leicestershire District Council,31UH,Street Management,Environment Transport,ENOT,HGV Direct Ltd,A046956,30/03/2022,1422115,319.42,Purchases
North West Leicestershire District Council,31UH,Street Management,Environment Transport,ENOT,HGV Direct Ltd,A046956,30/03/2022,1422118,325.10,Purchases
North West Leicestershire District Council,31UH,Street Management,Environment Transport,ENOT,HGV Direct Ltd,A046956,30/03/2022,1422119,358.07,Purchases
North West Leicestershire District Council,31UH,Street Management,Environment - Street Scene,ESS,Groundsman Tools Ltd,A030744,30/03/2022,1422124,259.90,Operational Purchases
North West Leicestershire District Council,31UH,Housing,HRA Housing Management,HRAHM,James Andrews Recruitment Solutions,A036290,30/03/2022,1422129,915.19,Agency Staff
North West Leicestershire District Council,31UH,Planning & Development,Environment - Development Control,EDC,Benchmark Archaeology,A046679,30/03/2022,1422130,2595.00,River Mease Project Expenditure
North West Leicestershire District Council,31UH,Street Management,Environment Transport,ENOT,HGV Direct Ltd,A046956,30/03/2022,1422141,1079.39,Repairs - Parts
North West Leicestershire District Council,31UH,Street Management,Environment Transport,ENOT,Mobile Hydraulics Ltd,A001131,30/03/2022,1422151,340.77,Washing Down of Vehicles
North West Leicestershire District Council,31UH,Street Management,Environment Transport,ENOT,Lodge Tyre Co Ltd,A004457,30/03/2022,1422152,265.00,Transport Costs - Tyres
North West Leicestershire District Council,31UH,Street Management,Environment Transport,ENOT,Lodge Tyre Co Ltd,A004457,30/03/2022,1422155,470.00,Transport Costs - Tyres
North West Leicestershire District Council,31UH,Street Management,Environment Transport,ENOT,Lodge Tyre Co Ltd,A004457,30/03/2022,1422156,425.98,Transport Costs - Tyres
North West Leicestershire District Council,31UH,Street Management,Environment Transport,ENOT,Lodge Tyre Co Ltd,A004457,30/03/2022,1422157,538.00,Transport Costs - Tyres
North West Leicestershire District Council,31UH,Street Management,Environment Transport,ENOT,Ford & Slater Group Ltd,A000625,30/03/2022,1422160,450.00,Repairs - Parts
North West Leicestershire District Council,31UH,Street Management,Environment Transport,ENOT,J F Lloyd & Sons,A000991,30/03/2022,1422162,260.00,Hire Of Operational Equipment
North West Leicestershire District Council,31UH,Street Management,Environment - Street Scene,ESS,Safety Case Consultants Limited,A047234,09/03/2022,1420687,7225.00,Consultants Fees
North West Leicestershire District Council,31UH,Street Management,Environment Parks,ENOP,Landscape Supply Company,A041669,09/03/2022,1420735,256.30,Protective Clothing
North West Leicestershire District Council,31UH,Street Management,Environment Parks,ENOP,The International Certification and Training Academy,A044098,09/03/2022,1420803,300.00,Training Expenses
North West Leicestershire District Council,31UH,Street Management,Environment Transport,ENOT,JB Tool Hire Ltd,A011490,09/03/2022,1421025,860.00,Hire Of Transport
North West Leicestershire District Council,31UH,Leisure & Culture,Sport & Physical Activity,SPA,Wild Minds,A047300,09/03/2022,1421080,300.00,Health Initiatives
North West Leicestershire District Council,31UH,Leisure & Culture,Sport & Physical Activity,SPA,Boxercise4Health,A047315,09/03/2022,1421082,300.00,Exercise Class
North West Leicestershire District Council,31UH,Street Management,Environment Transport,ENOT,J F Lloyd & Sons,A000991,09/03/2022,1421084,390.00,Hire Of Operational Equipment
North West Leicestershire District Council,31UH,Street Management,Environment Transport,ENOT,J F Lloyd & Sons,A000991,09/03/2022,1421085,390.00,Hire Of Operational Equipment
North West Leicestershire District Council,31UH,Housing Repairs,HRA Housing Repairs & Maintenance,HRAHRM,Castle Damp & Timber Specialists Limited,A046384,09/03/2022,1421093,3085.00,Legal & Professional Services
North West Leicestershire District Council,31UH,Property Services,Property Facilities Management,PROPFM,Regarde Security Ltd,A013049,09/03/2022,1421103,515.20,Building Security
North West Leicestershire District Council,31UH,Property Services,Property Facilities Management,PROPFM,Regarde Security Ltd,A013049,09/03/2022,1421104,903.83,Building Security
North West Leicestershire District Council,31UH,Corporate Director,Human Resources,HR,Mental Health First Aid England CIC,A045609,09/03/2022,1421123,2200.00,Corporate Training
North West Leicestershire District Council,31UH,Street Management,Environment Transport,ENOT,EPT Services,A039764,09/03/2022,1421125,805.34,Protective Clothing
North West Leicestershire District Council,31UH,Street Management,Environment Parks,ENOP,Barcham Tree PLC,A034582,09/03/2022,1421177,2096.00,Horticultural Supplies
North West Leicestershire District Council,31UH,Housing Repairs,HRA Housing Repairs & Maintenance,HRAHRM,Michael Dyson Associates Ltd,A028431,09/03/2022,1421184,550.00,Legal & Professional Services
North West Leicestershire District Council,31UH,Leisure & Culture,Cultural Services Arts & Events,CULTEV,Lee Cooper,A020528,09/03/2022,1421188,250.00,Civic Events - Remembrance Day
North West Leicestershire District Council,31UH,Street Management,Environment Parks,ENOP,Barcham Tree PLC,A034582,09/03/2022,1421192,5731.00,Horticultural Supplies
North West Leicestershire District Council,31UH,Communications,Corporate - Communications,CP,Cuttlefish Multimedia Ltd,A032102,09/03/2022,1421195,1950.00,Digital Communications
North West Leicestershire District Council,31UH,Communications,Corporate - Communications,CP,Cuttlefish Multimedia Ltd,A032102,09/03/2022,1421196,780.00,Digital Communications
North West Leicestershire District Council,31UH,Housing,HRA Housing Management,HRAHM,James Andrews Recruitment Solutions,A036290,09/03/2022,1421200,876.52,Agency Staff
North West Leicestershire District Council,31UH,Street Management,Environment Transport,ENOT,Riverside Truck Rental Ltd,A045702,09/03/2022,1421206,5300.00,Hire Of Transport
North West Leicestershire District Council,31UH,Street Management,Environment Transport,ENOT,Riverside Truck Rental Ltd,A045702,09/03/2022,1421207,3580.00,Hire Of Transport
North West Leicestershire District Council,31UH,Street Management,Environment Transport,ENOT,Riverside Truck Rental Ltd,A045702,09/03/2022,1421208,4700.00,Hire Of Transport
North West Leicestershire District Council,31UH,Street Management,Environment Transport,ENOT,Riverside Truck Rental Ltd,A045702,09/03/2022,1421209,5000.00,Hire Of Transport
North West Leicestershire District Council,31UH,Street Management,Environment Transport,ENOT,Riverside Truck Rental Ltd,A045702,09/03/2022,1421210,2448.30,Vehicle Hire
North West Leicestershire District Council,31UH,Street Management,Environment Transport,ENOT,J F Lloyd & Sons,A000991,09/03/2022,1421212,260.00,Hire Of Operational Equipment
North West Leicestershire District Council,31UH,Street Management,Environment Transport,ENOT,Second 2 None,A031408,09/03/2022,1421218,6360.00,Washing Down of vehicles
North West Leicestershire District Council,31UH,Chief Exec,Chief Executive,CHEX,Pollards Fruit & Veg,A045637,09/03/2022,1421225,320.00,Fruit basket Delivery
North West Leicestershire District Council,31UH,Street Management,Environment Waste Management,ENOWM,ESE World Limited,A001253,02/03/2022,1420153,795.00,General Materials
North West Leicestershire District Council,31UH,Street Management,Environment Transport,ENOT,Kilworth Machinery Ltd,A041200,02/03/2022,1420698,2043.76,Scheduled Servicing - Labour
North West Leicestershire District Council,31UH,Street Management,Environment Transport,ENOT,Kilworth Machinery Ltd,A041200,02/03/2022,1420699,2025.36,Scheduled Servicing - Labour
North West Leicestershire District Council,31UH,Property Services,Property Facilities Management,PROPFM,Midland Facilities Services Ltd,A046525,02/03/2022,1420738,512.86,General Repairs
North West Leicestershire District Council,31UH,Finance,Financial Planning,FINPLA,Sports & Leisure Management Ltd,A045556,02/03/2022,1420739,16536.00,Payments To Contractor
North West Leicestershire District Council,31UH,Street Management,Environment Parks,ENOP,Buxton's Ltd,A029426,02/03/2022,1420741,340.83,Operational Purchases
North West Leicestershire District Council,31UH,Street Management,Environment Parks,ENOP,Groundsman Tools Ltd,A030744,02/03/2022,1420744,729.92,Protective Clothing
North West Leicestershire District Council,31UH,Leisure & Culture,Cultural Services Arts & Events,CULTEV,Office Needs Direct (UK) Ltd,A047191,02/03/2022,1420755,1350.00,Covid 19 Re-Opening retail Expenditure
North West Leicestershire District Council,31UH,Leisure & Culture,Cultural Services Arts & Events,CULTEV,Office Needs Direct (UK) Ltd,A047191,02/03/2022,1420756,15504.02,Covid 19 Re-Opening retail Expenditure
North West Leicestershire District Council,31UH,Housing,HRA Older Persons Service,HRAOPS,Tunstall Healthcare (UK) Limited,A001701,02/03/2022,1420780,375.00,Alarm System Telephones
North West Leicestershire District Council,31UH,Street Management,Environment Waste Management,ENOWM,One51 ES Plastics(UK) Ltd  t/a MGB Plastics,A044595,02/03/2022,1420785,21040.00,General Materials
North West Leicestershire District Council,31UH,Neighbourhoods & Communities,N & C Community Safety,NACCS,Leicestershire County Council,A047276,02/03/2022,1420790,1000.00,PCC Early Intervention Expenditure
North West Leicestershire District Council,31UH,Chief Exec,Chief Executive,CHEX,exi,A045557,17/03/2022,1420815,1400.00,Consultants Fees
North West Leicestershire District Council,31UH,Housing,HRA Performance & Business Support,HRAPBS,Alliance Contracting Solutions Ltd,A043325,17/03/2022,1421408,6204.00,Legal & Professional Services
North West Leicestershire District Council,31UH,Chief Exec,Chief Executive,CHEX,Sable Leigh Consultancy Ltd T/A SLC Rail,A042727,17/03/2022,1421562,1312.50,Consultants Fees
North West Leicestershire District Council,31UH,Finance,Financial Planning,FINPLA,LAVAT Consulting Limited,A035908,17/03/2022,1421565,2950.00,Subscriptions
North West Leicestershire District Council,31UH,Property Services,Property Facilities Management,PROPFM,Zenith Hygiene Systems,A041992,23/03/2022,1420497,641.25,Cleaning & Domestic Equipment
North West Leicestershire District Council,31UH,Property Services,Property Facilities Management,PROPFM,John Merison BMC Ltd,A001092,23/03/2022,1420659,742.00,General Repairs
North West Leicestershire District Council,31UH,Housing,HRA Older Persons Service,HRAOPS,Tunstall Healthcare (UK) Limited,A001701,23/03/2022,1420753,1498.80,Alarm System Telephones
North West Leicestershire District Council,31UH,Legal & Democratic,Electoral & Land Charges,LDELC,Leicestershire County Council,A027423,23/03/2022,1420806,2204.00,LCC Search Fees
North West Leicestershire District Council,31UH,Street Management,Environment Parks,ENOP,Keith Cook Training Services,A027792,23/03/2022,1421219,547.50,Training Expenses
North West Leicestershire District Council,31UH,Street Management,Environment Parks,ENOP,Keith Cook Training Services,A027792,23/03/2022,1421220,565.25,Training Expenses
North West Leicestershire District Council,31UH,Street Management,Environment - Street Scene,ESS,Groundsman Tools Ltd,A030744,23/03/2022,1421223,686.68,Operational Purchases
North West Leicestershire District Council,31UH,Finance,Financial Planning,FINPLA,Moore Stephens Insight Ltd,A045967,23/03/2022,1421450,3900.00,Computing
North West Leicestershire District Council,31UH,Chief Executive,Transformational Services,TS,HQN Ltd,A007983,23/03/2022,1421476,300.00,Training Expenses
North West Leicestershire District Council,31UH,Planning & Development,Environment - Town Centre/CCTV,ECCTV,Leicestershire County Council,A000950,23/03/2022,1421504,2100.00,PCC Early Intervention Expenditure
North West Leicestershire District Council,31UH,Economic Development,Business Focus Group,BFG,Ilex Tree Services,A046556,23/03/2022,1421746,1287.00,External Legal Fees & Advice
North West Leicestershire District Council,31UH,Housing,HRA Housing Management,HRAHM,Aareon UK Ltd,A045197,23/03/2022,1421758,1305.00,Contract Payments (Other) Ext
North West Leicestershire District Council,31UH,Housing,HRA Housing Management,HRAHM,Aareon UK Ltd,A045197,23/03/2022,1421764,3300.00,Contract Payments (Other) Ext
North West Leicestershire District Council,31UH,Housing,HRA Housing Management,HRAHM,Aareon UK Ltd,A045197,23/03/2022,1421766,1740.00,Contract Payments (Other) Ext
North West Leicestershire District Council,31UH,Housing,HRA Housing Management,HRAHM,Aareon UK Ltd,A045197,23/03/2022,1421767,1305.00,Contract Payments (Other) Ext
North West Leicestershire District Council,31UH,Finance,Financial Planning,FINPLA,CIPFA Business Limited,A036780,23/03/2022,1421785,3000.00,Computing
North West Leicestershire District Council,31UH,Finance,Financial Planning,FINPLA,CIPFA Business Limited,A036780,23/03/2022,1421786,1332.00,Computing
North West Leicestershire District Council,31UH,Planning & Development,Environment Planning Policy,EPP,Land Use Consultants Ltd,A044090,23/03/2022,1421795,5367.00,Consultants Fees
North West Leicestershire District Council,31UH,Street Management,Environment Transport,ENOT,FAROL Limited,A041905,23/03/2022,1421796,539.99,Purchases
North West Leicestershire District Council,31UH,Street Management,Environment Transport,ENOT,FAROL Limited,A041905,23/03/2022,1421797,630.00,Purchases
North West Leicestershire District Council,31UH,Street Management,Environment Transport,ENOT,S & B Tyres Limited,A034071,23/03/2022,1421806,284.00,Purchases
North West Leicestershire District Council,31UH,Street Management,Environment Transport,ENOT,S & B Tyres Limited,A034071,23/03/2022,1421807,360.00,Purchases
North West Leicestershire District Council,31UH,Neighbourhoods & Communities,N & C Community Safety,NACCS,Spiral Projects and Consultancy,A047326,02/03/2022,1421050,500.00,PCC Early Intervention Expenditure
North West Leicestershire District Council,31UH,Housing Repairs,HRA Housing Repairs & Maintenance,HRAHRM,T & S Heating Ltd,A046054,30/03/2022,1422366,1462.13,Responsive Repairs
North West Leicestershire District Council,31UH,Finance,Exchequer Services,EXCH,Click Travel Ltd,A044308,30/03/2022,1422367,4825.67,Accomodation and Travel
North West Leicestershire District Council,31UH,Finance,Exchequer Services,EXCH,Comensura Limited,A036958,30/03/2022,1422369,25658.54,Agency Staff
North West Leicestershire District Council,31UH,Housing Repairs,HRA Housing Repairs & Maintenance,HRAHRM,Dalrod UK Ltd,A046051,30/03/2022,1422372,3054.74,Sewerage & Environmental
North West Leicestershire District Council,31UH,Housing,HRA Housing Management,HRAHM,Water Plus Limited,A044043,30/03/2022,1422373,294.67,Water Charges (Metered)
North West Leicestershire District Council,31UH,Leisure & Culture,Sport & Physical Activity,SPA,Worthington Primary School PTFA,A047396,30/03/2022,1422374,250.00,Small Grant Scheme
North West Leicestershire District Council,31UH,Housing Repairs,HRA Housing Repairs & Maintenance,HRAHRM,Dalrod UK Ltd,A046051,30/03/2022,1422380,432.02,Sewerage & Environmental
North West Leicestershire District Council,31UH,Housing Repairs,HRA Housing Repairs & Maintenance,HRAHRM,Dalrod UK Ltd,A046051,30/03/2022,1422381,924.79,Sewerage & Environmental
North West Leicestershire District Council,31UH,Housing Repairs,HRA Housing Repairs & Maintenance,HRAHRM,Sure Maintenance Ltd,A040460,30/03/2022,1422384,28779.45,Plumbing and Heating
North West Leicestershire District Council,31UH,Finance,Exchequer Services,EXCH,Comensura Limited,A036958,09/03/2022,1421392,21312.17,Agency Staff
North West Leicestershire District Council,31UH,Finance,Exchequer Services,EXCH,Click Travel Ltd,A044308,09/03/2022,1421393,3055.13,Accomodation and Travel
North West Leicestershire District Council,31UH,Finance,Revenues,REVS,Redacted-Personal Data,A000133,03/03/2022,1421052,500.00,Grants
North West Leicestershire District Council,31UH,Finance,Revenues,REVS,Redacted-Personal Data,A000133,03/03/2022,1421053,1000.00,Grants
North West Leicestershire District Council,31UH,Finance,Revenues,REVS,Redacted-Personal Data,A000133,03/03/2022,1421054,1000.00,Grants
North West Leicestershire District Council,31UH,Finance,Revenues,REVS,Redacted-Personal Data,A000133,03/03/2022,1421055,500.00,Grants
North West Leicestershire District Council,31UH,Finance,Revenues,REVS,Redacted-Personal Data,A000133,03/03/2022,1421056,6000.00,Grants
North West Leicestershire District Council,31UH,Finance,Revenues,REVS,Redacted-Personal Data,A000133,03/03/2022,1421057,1500.00,Grants
North West Leicestershire District Council,31UH,Finance,Financial Planning,FINPLA,Leicestershire County Council,A000950,03/03/2022,1421060,4859264.00,Precept
North West Leicestershire District Council,31UH,Finance,Financial Planning,FINPLA,"Leicester, Leicestershire & Rutland Combined Fire Authority",A028339,03/03/2022,1421061,238579.00,Precept
North West Leicestershire District Council,31UH,Finance,Financial Planning,FINPLA,The Office of the Police and Crime Commissioner for Leicestershire,A007096,03/03/2022,1421062,855131.75,Precept
North West Leicestershire District Council,31UH,Finance,Financial Planning,FINPLA,Department for Communities & Local Government,A028518,03/03/2022,1421063,2485744.00,Subsidy Receipts and Repayments
North West Leicestershire District Council,31UH,Finance,Financial Planning,FINPLA,Leicestershire County Council,A000950,03/03/2022,1421064,1445222.00,Precept
North West Leicestershire District Council,31UH,Finance,Exchequer Services,EXCH,ESPO,A000958,03/03/2022,1421065,10462.35,Gas
North West Leicestershire District Council,31UH,Finance,Exchequer Services,EXCH,ESPO,A000958,03/03/2022,1421068,322.74,Gas
North West Leicestershire District Council,31UH,Housing,HRA Housing Management,HRAHM,H M C S,A033868,03/03/2022,1421071,1325.00,Legal & Professional Services
North West Leicestershire District Council,31UH,Leisure & Culture,Cultural Services Arts & Events,CULTEV,Adamlights,A000133,30/03/2022,1422341,6083.98,Coalville Christmas Decorations
North West Leicestershire District Council,31UH,Communications,Corporate - Communications,CP,Quadient UK Ltd,A000079,30/03/2022,1422343,6102.92,Postages
North West Leicestershire District Council,31UH,Finance,Exchequer Services,EXCH,H M Land Registry,A000713,30/03/2022,1422351,814.00,Land Registry Searches
North West Leicestershire District Council,31UH,Finance,Exchequer Services,EXCH,H M Land Registry,A000713,30/03/2022,1422371,437.00,Land Registry Searches
North West Leicestershire District Council,31UH,Finance,Revenues,REVS,Redacted-Personal Data,A000133,30/03/2022,1422394,1000.00,Grants
North West Leicestershire District Council,31UH,Finance,Exchequer Services,EXCH,Lloyds Bank Plc,A042250,30/03/2022,1422401,882.50,DVLA Road Tax
North West Leicestershire District Council,31UH,Finance,Exchequer Services,EXCH,Vodafone Limited,A001861,30/03/2022,1422403,581.11,Mobile Telephones
North West Leicestershire District Council,31UH,Housing,HRA Housing Management,HRAHM,JLA Limited,A043639,09/03/2022,1421232,412.00,Cleaning & Domestic Equipment
North West Leicestershire District Council,31UH,Leisure & Culture,Cultural Services Arts & Events,CULTEV,Wild Rumpus,A047330,09/03/2022,1421234,5000.00,Special Events
North West Leicestershire District Council,31UH,Housing,HRA Housing Management,HRAHM,Severn Trent Water Limited,A001468,09/03/2022,1421237,8304.27,Water Charges (Metered)
North West Leicestershire District Council,31UH,Information Technology,ICT Services,ICT,EE Ltd (Airtime),A018592,09/03/2022,1421239,5968.59,Mobile Telephones
North West Leicestershire District Council,31UH,Information Technology,ICT Services,ICT,EE Ltd (Airtime),A018592,09/03/2022,1421240,1671.87,Mobile Telephones
North West Leicestershire District Council,31UH,Housing,HRA Housing Management,HRAHM,JLA Limited,A043639,09/03/2022,1421253,282.00,Cleaning & Domestic Equipment
North West Leicestershire District Council,31UH,Leisure & Culture,Sport & Physical Activity,SPA,Coalville Town Youth FC Ltd,A047335,09/03/2022,1421254,250.00,Health Initiatives
North West Leicestershire District Council,31UH,Economic Development,Business Focus Group,BFG,Cinders Homebakes & Macarons,A047342,09/03/2022,1421256,250.00,grants
North West Leicestershire District Council,31UH,Economic Development,Business Focus Group,BFG,Laura's Little Learners,A047341,09/03/2022,1421269,250.00,grants
North West Leicestershire District Council,31UH,Economic Development,Business Focus Group,BFG,Nails by Katie B,A047340,09/03/2022,1421270,250.00,grants
North West Leicestershire District Council,31UH,Economic Development,Business Focus Group,BFG,The Housekeeper,A047339,09/03/2022,1421271,250.00,grants
North West Leicestershire District Council,31UH,Economic Development,Business Focus Group,BFG,H & H Pet Services Coalville,A047338,09/03/2022,1421272,250.00,grants
North West Leicestershire District Council,31UH,Housing,HRA Housing Management,HRAHM,Water Plus Limited,A044043,02/03/2022,1420798,354.56,Water Charges (Metered)
North West Leicestershire District Council,31UH,Housing Strategy,Community - Housing Strategy,HS,Click Travel Ltd,A044308,02/03/2022,1420799,7050.70,Accomodation and Travel
North West Leicestershire District Council,31UH,Economic Development,Business Focus Group,BFG,Lazydog Distillery,A047325,02/03/2022,1421026,720.00,Grants
North West Leicestershire District Council,31UH,Economic Development,Business Focus Group,BFG,Aerofields Ltd,A044694,02/03/2022,1421028,1000.00,Grants
North West Leicestershire District Council,31UH,Legal & Democratic,Legal Services,LDLS,Browne Jacobson LLP,A042988,02/03/2022,1421041,2051.00,Legal & Professional Services
North West Leicestershire District Council,31UH,Housing,HRA Housing Management,HRAHM,JLA Limited,A043639,02/03/2022,1421047,427.84,Cleaning & Domestic Equipment
North West Leicestershire District Council,31UH,Neighbourhoods & Communities,N & C Neighbourhoods,NACN,Thringstone Miners Social Centre,A038766,09/03/2022,1421114,250.00,Small Grant Scheme
North West Leicestershire District Council,31UH,Neighbourhoods & Communities,N & C Neighbourhoods,NACN,Broomleys Cricket Club,A047329,09/03/2022,1421115,250.00,Grants
North West Leicestershire District Council,31UH,Economic Development,Business Focus Group,BFG,Sew Fabrics,A047331,09/03/2022,1421182,947.00,Grants
North West Leicestershire District Council,31UH,Property Services,Property Commercial Lettings,PROPCL,Water Plus Limited,A044043,09/03/2022,1421193,343.89,Water Charges (Metered)
North West Leicestershire District Council,31UH,Housing,HRA Housing Management,HRAHM,Redacted-Personal Data,A047374,23/03/2022,1421937,986.00,Compensation
North West Leicestershire District Council,31UH,Finance,Exchequer Services,EXCH,Comensura Limited,A036958,23/03/2022,1421938,19086.24,Agency Staff
North West Leicestershire District Council,31UH,Housing,HRA Housing Management,HRAHM,Click Travel Ltd,A044308,23/03/2022,1421939,5637.15,Accomodation and Travel
North West Leicestershire District Council,31UH,Housing Repairs,HRA Housing Repairs & Maintenance,HRAHRM,City Electrical Factors Ltd,A003893,27/04/2022,1422020,999.99,Operational Equipment
North West Leicestershire District Council,31UH,Legal & Democratic,Legal Services,LDLS,Gough Square Chambers,A047384,23/03/2022,1422025,800.00,Legal & Professional Services
North West Leicestershire District Council,31UH,Legal & Democratic,Legal Services,LDLS,No 5 Chambers Ltd,A022238,23/03/2022,1422026,1500.00,External Legal Fees & Advice
North West Leicestershire District Council,31UH,Legal & Democratic,Legal Services,LDLS,No 5 Chambers Ltd,A044794,23/03/2022,1422027,2375.00,Legal & Professional Services
North West Leicestershire District Council,31UH,Street Management,Environment Parks,ENOP,Redacted-Personal Data,A047385,23/03/2022,1422033,264.00,Window Repair
North West Leicestershire District Council,31UH,Finance,Exchequer Services,EXCH,Comensura Limited,A036958,17/03/2022,1421411,30445.02,Agency Staff
North West Leicestershire District Council,31UH,Legal & Democratic,Electoral & Land Charges,LDELC,Civica Ltd,A021357,17/03/2022,1421414,14178.46,Software Licences
North West Leicestershire District Council,31UH,Legal & Democratic,Electoral & Land Charges,LDELC,Twofold Ltd,A041261,17/03/2022,1421415,980.68,Equipment Maintenance
North West Leicestershire District Council,31UH,Information Technology,ICT Services,ICT,Canon UK Ltd,A040459,17/03/2022,1421426,383.37,Equipment Operating Leases
North West Leicestershire District Council,31UH,Information Technology,ICT Services,ICT,Canon UK Ltd,A040459,17/03/2022,1421427,1128.30,Photo Copier - Copy Charges Rental
North West Leicestershire District Council,31UH,Neighbourhoods & Communities,N & C Community Safety,NACCS,Ravenstone With Snibston PC,A001364,17/03/2022,1421452,250.00,Small Grant Scheme
North West Leicestershire District Council,31UH,Finance,Exchequer Services,EXCH,Click Travel Ltd,A044308,17/03/2022,1421454,11790.49,Accomodation and Travel
North West Leicestershire District Council,31UH,Property Services,Property Commercial Lettings,PROPCL,Ridehalgh Nicholls Comsulting Ltd,A047355,17/03/2022,1421475,3190.00,Consultants Fees
North West Leicestershire District Council,31UH,Neighbourhoods & Communities,N & C Community Safety,NACCS,Friends of Fairfield,A044251,23/03/2022,1421734,250.00,Small Grant Scheme
North West Leicestershire District Council,31UH,Neighbourhoods & Communities,N & C Community Safety,NACCS,One Kegworth,A047369,23/03/2022,1421735,250.00,Small Grant Scheme
North West Leicestershire District Council,31UH,Neighbourhoods & Communities,N & C Community Safety,NACCS,Whitwick & Thringstone TA,A045832,23/03/2022,1421736,260.75,Small Grant Scheme
North West Leicestershire District Council,31UH,Finance,Financial Planning,FINPLA,Measham Parish Council,A001082,23/03/2022,1421755,273.66,Contribution To Measham Development Trust
North West Leicestershire District Council,31UH,Property Services,Property Commercial Lettings,PROPCL,Water Plus Limited,A044043,23/03/2022,1421772,326.24,Water Charges (Metered)
North West Leicestershire District Council,31UH,Legal & Democratic,Legal Services,LDLS,Royal Mail Group Plc,A001418,23/03/2022,1421778,422.74,Postages
North West Leicestershire District Council,31UH,Finance,Financial Planning,FINPLA,Department for Communities & Local Government,A028518,23/03/2022,1421833,122915.00,Income Share
North West Leicestershire District Council,31UH,Housing,HRA Housing Management,HRAHM,JLA Limited,A043639,23/03/2022,1421864,442.00,Contract Cleaning
North West Leicestershire District Council,31UH,Housing,HRA Housing Management,HRAHM,JLA Limited,A043639,23/03/2022,1421865,302.00,Contract Cleaning
North West Leicestershire District Council,31UH,Housing,HRA Housing Management,HRAHM,Newton Fallowell,A042945,23/03/2022,1421867,396.00,Legal & Professional Services
North West Leicestershire District Council,31UH,Housing,HRA Housing Management,HRAHM,PPG Architectural Coatings Ltd,A000876,23/03/2022,1421868,1948.72,Internal Decorations
North West Leicestershire District Council,31UH,Housing,HRA Housing Management,HRAHM,PPG Architectural Coatings Ltd,A000876,23/03/2022,1421869,2408.43,Internal Decorations
North West Leicestershire District Council,31UH,Chief Exec,Chief Executive,CHEX,Corstorphine & Wright (Birmingham Studio) Ltd,A044311,02/03/2022,1420727,5000.00,PRE - Public Realm Projects
North West Leicestershire District Council,31UH,Street Management,Environment - Street Scene,ESS,National Association of British,A032899,02/03/2022,1420728,1000.00,Training Expenses
North West Leicestershire District Council,31UH,Communications,Corporate - Customer Services,CS,Quadient UK Ltd,A000079,02/03/2022,1420750,2126.00,Postages
North West Leicestershire District Council,31UH,Finance,Exchequer Services,EXCH,Comensura Limited,A036958,02/03/2022,1420761,24782.30,Agency Staff
North West Leicestershire District Council,31UH,Economic Development,Business Focus Group,BFG,Redacted-Personal Data,A047221,02/03/2022,1420767,500.00,grants
North West Leicestershire District Council,31UH,Housing,HRA Housing Management,HRAHM,JLA Limited,A043639,02/03/2022,1420770,442.00,Cleaning & Domestic Equipment
North West Leicestershire District Council,31UH,Housing,HRA Housing Management,HRAHM,JLA Limited,A043639,02/03/2022,1420773,302.00,Cleaning & Domestic Equipment
North West Leicestershire District Council,31UH,Housing,HRA Housing Management,HRAHM,PPG Architectural Coatings Ltd,A000876,02/03/2022,1420777,1421.85,Internal Decorations
North West Leicestershire District Council,31UH,Neighbourhoods & Communities,N & C Neighbourhoods,NACN,Kegworth Parish Council,A000882,02/03/2022,1420781,250.00,Small Grant Scheme
North West Leicestershire District Council,31UH,Housing,HRA Housing Management,HRAHM,JLA Limited,A043639,02/03/2022,1420782,282.00,Cleaning & Domestic Equipment
North West Leicestershire District Council,31UH,Housing Repairs,HRA Housing Repairs & Maintenance,HRAHRM,European Asbestos Services Ltd,A045507,02/03/2022,1420792,17099.78,Asbestos Surveys and Remediation
North West Leicestershire District Council,31UH,Housing Repairs,HRA Housing Repairs & Maintenance,HRAHRM,Sure Maintenance Ltd,A040460,02/03/2022,1420793,2743.32,Plumbing and Heating
North West Leicestershire District Council,31UH,Housing Repairs,HRA Housing Repairs & Maintenance,HRAHRM,Sure Maintenance Ltd,A040460,02/03/2022,1420794,4554.66,Plumbing and Heating
North West Leicestershire District Council,31UH,Housing Repairs,HRA Housing Repairs & Maintenance,HRAHRM,Sure Maintenance Ltd,A040460,02/03/2022,1420795,509.12,Plumbing and Heating
North West Leicestershire District Council,31UH,Housing Repairs,HRA Housing Repairs & Maintenance,HRAHRM,Sure Maintenance Ltd,A040460,02/03/2022,1420796,689.10,Plumbing and Heating
North West Leicestershire District Council,31UH,Housing Repairs,HRA Housing Repairs & Maintenance,HRAHRM,McHale Contracts & Plant Environmental LLP,A046696,02/03/2022,1420797,4291.73,Environmental Surveys
North West Leicestershire District Council,31UH,Housing,HRA Housing Management,HRAHM,Aareon UK Ltd,A045197,30/03/2022,1422229,435.00,Contract Payments (Other) Ext
North West Leicestershire District Council,31UH,Housing Repairs,HRA Housing Repairs & Maintenance,HRAHRM,McHale Contracts & Plant Environmental LLP,A046696,30/03/2022,1422246,3664.10,Environmental Surveys
North West Leicestershire District Council,31UH,Housing Repairs,HRA Housing Repairs & Maintenance,HRAHRM,McHale Contracts & Plant Environmental LLP,A046696,30/03/2022,1422247,2724.68,Environmental Surveys
North West Leicestershire District Council,31UH,Housing Repairs,HRA Housing Repairs & Maintenance,HRAHRM,McHale Contracts & Plant Environmental LLP,A046696,30/03/2022,1422248,4498.11,Environmental Surveys
North West Leicestershire District Council,31UH,Housing Repairs,HRA Housing Repairs & Maintenance,HRAHRM,Sure Maintenance Ltd,A040460,30/03/2022,1422249,1775.18,Plumbing and Heating
North West Leicestershire District Council,31UH,Housing Repairs,HRA Housing Repairs & Maintenance,HRAHRM,Morgan Lambert Limited,A045162,30/03/2022,1422250,1197.00,Servicing
North West Leicestershire District Council,31UH,Housing,HRA Housing Management,HRAHM,Water Plus Limited,A044043,30/03/2022,1422256,659.82,Water Charges (Metered)
North West Leicestershire District Council,31UH,Housing,HRA Housing Management,HRAHM,Severn Trent Water Limited,A001468,30/03/2022,1422257,270.28,Water Charges (Metered)
North West Leicestershire District Council,31UH,Leisure & Culture,Sport & Physical Activity,SPA,Venture Dance School,A047376,30/03/2022,1422260,500.00,Health Initiatives
North West Leicestershire District Council,31UH,Housing Repairs,HRA Housing Repairs & Maintenance,HRAHRM,Sure Maintenance Ltd,A040460,30/03/2022,1422326,659.59,Plumbing and Heating
North West Leicestershire District Council,31UH,Housing Repairs,HRA Housing Repairs & Maintenance,HRAHRM,Sure Maintenance Ltd,A040460,30/03/2022,1422327,2815.17,Plumbing and Heating
North West Leicestershire District Council,31UH,Housing Repairs,HRA Housing Repairs & Maintenance,HRAHRM,Sure Maintenance Ltd,A040460,30/03/2022,1422328,2815.17,Plumbing and Heating
North West Leicestershire District Council,31UH,Housing Repairs,HRA Housing Repairs & Maintenance,HRAHRM,Sure Maintenance Ltd,A040460,30/03/2022,1422329,659.59,Plumbing and Heating
North West Leicestershire District Council,31UH,Housing Repairs,HRA Housing Repairs & Maintenance,HRAHRM,Sure Maintenance Ltd,A040460,30/03/2022,1422336,18610.28,Plumbing and Heating
North West Leicestershire District Council,31UH,Housing Repairs,HRA Housing Repairs & Maintenance,HRAHRM,Sure Maintenance Ltd,A040460,30/03/2022,1422337,18610.28,Plumbing and Heating
North West Leicestershire District Council,31UH,Finance,Financial Planning,FINPLA,Public Works Loan Board,A001340,17/03/2022,1421718,13000000.00,Annuity Loan Repayments
North West Leicestershire District Council,31UH,Finance,Financial Planning,FINPLA,Public Works Loan Board,A001340,17/03/2022,1421719,593168.90,Annuity Loan Repayments
North West Leicestershire District Council,31UH,Finance,Financial Planning,FINPLA,Public Works Loan Board,A001340,17/03/2022,1421720,1000000.00,P.W.L.B. Loans
North West Leicestershire District Council,31UH,Finance,Financial Planning,FINPLA,Public Works Loan Board,A001340,17/03/2022,1421721,35414.29,P.W.L.B. Loans
North West Leicestershire District Council,31UH,Housing,HRA Housing Management,HRAHM,H M C S,A033868,17/03/2022,1421722,1420.00,Legal & Professional Services
North West Leicestershire District Council,31UH,Finance,Financial Planning,FINPLA,Cornwall  Council,A031018,17/03/2022,1421724,34092.47,Negotiable Bonds
North West Leicestershire District Council,31UH,Housing Strategy,Community - Housing Strategy,HS,Martin and Co Derby,A000133,17/03/2022,1421725,450.00,Rent Deposit Scheme
North West Leicestershire District Council,31UH,Housing Strategy,Community - Housing Strategy,HS,Leaders,A000133,17/03/2022,1421726,567.00,Rent Deposit Scheme
North West Leicestershire District Council,31UH,Finance,Exchequer Services,EXCH,ESPO,A000958,17/03/2022,1421727,8977.15,Gas
North West Leicestershire District Council,31UH,Finance,Exchequer Services,EXCH,Total Gas & Power,A033385,17/03/2022,1421728,21011.80,Electricity
North West Leicestershire District Council,31UH,Housing,HRA Housing Management,HRAHM,JLA Limited,A043639,30/03/2022,1422077,282.00,Contract Cleaning
North West Leicestershire District Council,31UH,Housing,HRA Housing Management,HRAHM,Friends of Fairfield,A044251,30/03/2022,1422094,599.00,Community Initiatives Expenditure
North West Leicestershire District Council,31UH,Housing Strategy,Community - Housing Strategy,HS,EMH Homes,A039302,30/03/2022,1422121,10527.50,Grants
North West Leicestershire District Council,31UH,Housing Strategy,Community - Housing Strategy,HS,EMH Homes,A039302,30/03/2022,1422122,17537.50,Grants
North West Leicestershire District Council,31UH,Housing Strategy,Community - Housing Strategy,HS,EMH Homes,A039302,30/03/2022,1422123,11040.00,Grants
North West Leicestershire District Council,31UH,Leisure & Culture,Sport & Physical Activity,SPA,Castle Donington Parish Council,A000300,30/03/2022,1422134,500.00,grants
North West Leicestershire District Council,31UH,Leisure & Culture,Sport & Physical Activity,SPA,We Care UK,A046769,30/03/2022,1422136,500.00,grants
North West Leicestershire District Council,31UH,Legal & Democratic,Legal Services,LDLS,Everyone Active,A045678,30/03/2022,1422145,780.00,Election Fees
North West Leicestershire District Council,31UH,Legal & Democratic,Legal Services,LDLS,SCI Print Limited,A028974,30/03/2022,1422166,675.86,Election Fees
North West Leicestershire District Council,31UH,Housing Repairs,HRA Housing Repairs & Maintenance,HRAHRM,PPG Architectural Coatings Ltd,A000876,30/03/2022,1422219,1992.63,Internal Decorations
North West Leicestershire District Council,31UH,Property Services,Property Commercial Lettings,PROPCL,British Telecommunications Plc,A000233,17/03/2022,1421535,538.49,Telephones
North West Leicestershire District Council,31UH,Property Services,Property Facilities Management,PROPFM,Water Plus Limited,A044043,17/03/2022,1421536,451.76,Water Charges (Metered)
North West Leicestershire District Council,31UH,Housing,HRA Housing Management,HRAHM,Leicestershire County Council,A000950,17/03/2022,1421540,10110.55,Contract Cleaning
North West Leicestershire District Council,31UH,Street Management,Environment Waste Management,ENOWM,SUEZ Recycling and Recovery UK Ltd,A001108,17/03/2022,1421544,345.55,Tipping Charges
North West Leicestershire District Council,31UH,Property Services,Property Commercial Lettings,PROPCL,Ridehalgh Nicholls Comsulting Ltd,A047355,17/03/2022,1421549,2189.46,Rent Deposit Refunds
North West Leicestershire District Council,31UH,Housing,HRA Housing Management,HRAHM,Redacted-Personal Data,A046548,17/03/2022,1421552,742.85,Decant Payment
North West Leicestershire District Council,31UH,Housing,HRA Housing Management,HRAHM,Leicestershire County Council,A000950,17/03/2022,1421553,1438.83,Contract Cleaning
North West Leicestershire District Council,31UH,Housing Repairs,HRA Housing Repairs & Maintenance,HRAHRM,Sure Maintenance Ltd,A040460,17/03/2022,1421677,18582.65,Plumbing and Heating
North West Leicestershire District Council,31UH,Housing Repairs,HRA Housing Repairs & Maintenance,HRAHRM,Sure Maintenance Ltd,A040460,17/03/2022,1421678,654.83,Plumbing and Heating
North West Leicestershire District Council,31UH,Housing Repairs,HRA Housing Repairs & Maintenance,HRAHRM,Sure Maintenance Ltd,A040460,17/03/2022,1421679,2815.17,Plumbing and Heating
North West Leicestershire District Council,31UH,Housing Repairs,HRA Housing Repairs & Maintenance,HRAHRM,Morgan Lambert Limited,A045162,17/03/2022,1421680,758.10,Servicing
North West Leicestershire District Council,31UH,Housing Repairs,HRA Housing Repairs & Maintenance,HRAHRM,Sure Maintenance Ltd,A040460,17/03/2022,1421689,315.02,Plumbing and Heating
North West Leicestershire District Council,31UH,Housing Repairs,HRA Housing Repairs & Maintenance,HRAHRM,Sure Maintenance Ltd,A040460,17/03/2022,1421691,385.72,Plumbing and Heating
North West Leicestershire District Council,31UH,Housing Repairs,HRA Housing Repairs & Maintenance,HRAHRM,Sure Maintenance Ltd,A040460,17/03/2022,1421692,264.93,Plumbing and Heating
North West Leicestershire District Council,31UH,Housing Repairs,HRA Housing Repairs & Maintenance,HRAHRM,Sure Maintenance Ltd,A040460,17/03/2022,1421694,482.15,Plumbing and Heating
North West Leicestershire District Council,31UH,Housing Repairs,HRA Housing Repairs & Maintenance,HRAHRM,Sure Maintenance Ltd,A040460,17/03/2022,1421695,385.72,Plumbing and Heating
North West Leicestershire District Council,31UH,Housing Repairs,HRA Housing Repairs & Maintenance,HRAHRM,Sure Maintenance Ltd,A040460,17/03/2022,1421696,482.15,Plumbing and Heating
North West Leicestershire District Council,31UH,Housing Repairs,HRA Housing Repairs & Maintenance,HRAHRM,Sure Maintenance Ltd,A040460,17/03/2022,1421697,422.52,Plumbing and Heating
North West Leicestershire District Council,31UH,Housing Repairs,HRA Housing Repairs & Maintenance,HRAHRM,Morgan Lambert Limited,A045162,17/03/2022,1421702,279.30,Servicing
North West Leicestershire District Council,31UH,Housing Repairs,HRA Housing Repairs & Maintenance,HRAHRM,Sure Maintenance Ltd,A040460,17/03/2022,1421703,1065.82,Plumbing and Heating
North West Leicestershire District Council,31UH,Housing Repairs,HRA Housing Repairs & Maintenance,HRAHRM,Sure Maintenance Ltd,A040460,17/03/2022,1421704,4555.44,Plumbing and Heating
North West Leicestershire District Council,31UH,Housing Repairs,HRA Housing Repairs & Maintenance,HRAHRM,Sure Maintenance Ltd,A040460,17/03/2022,1421705,427.56,Plumbing and Heating
North West Leicestershire District Council,31UH,Housing Strategy,Community - Housing Strategy,HS,Fuel Bank Service,A047362,17/03/2022,1421709,3000.00,Leics Welfare Prov - Fuel
North West Leicestershire District Council,31UH,Housing Repairs,HRA Housing Repairs & Maintenance,HRAHRM,Sure Maintenance Ltd,A040460,17/03/2022,1421710,1918.63,Plumbing and Heating
North West Leicestershire District Council,31UH,Housing Repairs,HRA Housing Repairs & Maintenance,HRAHRM,Sure Maintenance Ltd,A040460,17/03/2022,1421711,281.43,Plumbing and Heating
North West Leicestershire District Council,31UH,Housing,HRA Housing Management,HRAHM,Whitwick & Thringstone TA,A045832,17/03/2022,1421713,951.75,Grants
North West Leicestershire District Council,31UH,Finance,Exchequer Services,EXCH,HM Revenues & Customs,A038465,17/03/2022,1421714,1149.40,Payment To Inland Revenue
North West Leicestershire District Council,31UH,Neighbourhoods & Communities,N & C Neighbourhoods,NACN,Linda Young Photography and UX Design,A047363,17/03/2022,1421715,250.00,PCC Early Intervention Expenditure
North West Leicestershire District Council,31UH,Neighbourhoods & Communities,N & C Neighbourhoods,NACN,Life Story Writing,A047364,17/03/2022,1421716,250.00,PCC Early Intervention Expenditure
